{"text_format":"1","workbook":"xlsx","n_sheets":2,"sheets":["Urlaubsplaner","Feiertage"],"not_rendered":{"charts":0,"images":0,"macros":1,"external_links":0,"defined_names":2,"comments":0,"pivot_tables":0},"unopened":[],"bounds":{"document_bytes":16777216,"sheet_cells":100000,"rows_first":2000,"rows_last":500,"rows_between":2000,"halvings":0,"cell_chars":16384,"cell_head_chars":4096},"cells_cut":0,"cells_raw":0,"read":"whole","date_system":"1900"}

{"sheet":"Urlaubsplaner","index":0,"n_rows":28,"n_cols":368,"rows_kept":28,"cut":false,"hidden":false,"merged":[]}
["Name","U","2015-01-01",{"$f":"C1+1","v":"2015-01-02"},{"$f":"D1+1","v":"2015-01-03"},"2015-01-04","2015-01-05","2015-01-06","2015-01-07","2015-01-08","2015-01-09","2015-01-10","2015-01-11","2015-01-12","2015-01-13","2015-01-14","2015-01-15","2015-01-16","2015-01-17","2015-01-18","2015-01-19","2015-01-20","2015-01-21","2015-01-22","2015-01-23","2015-01-24","2015-01-25","2015-01-26","2015-01-27","2015-01-28","2015-01-29","2015-01-30","2015-01-31","2015-02-01","2015-02-02","2015-02-03","2015-02-04","2015-02-05","2015-02-06","2015-02-07","2015-02-08","2015-02-09","2015-02-10","2015-02-11","2015-02-12","2015-02-13","2015-02-14","2015-02-15","2015-02-16","2015-02-17","2015-02-18","2015-02-19","2015-02-20","2015-02-21","2015-02-22","2015-02-23","2015-02-24","2015-02-25","2015-02-26","2015-02-27","2015-02-28","2015-03-01","2015-03-02","2015-03-03","2015-03-04","2015-03-05","2015-03-06","2015-03-07",{"$f":"BP1+1","v":"2015-03-08"},"2015-03-09","2015-03-10","2015-03-11","2015-03-12","2015-03-13","2015-03-14","2015-03-15","2015-03-16","2015-03-17","2015-03-18","2015-03-19","2015-03-20","2015-03-21","2015-03-22","2015-03-23","2015-03-24","2015-03-25","2015-03-26","2015-03-27","2015-03-28","2015-03-29","2015-03-30","2015-03-31","2015-04-01","2015-04-02","2015-04-03","2015-04-04","2015-04-05","2015-04-06","2015-04-07","2015-04-08","2015-04-09","2015-04-10","2015-04-11","2015-04-12","2015-04-13","2015-04-14","2015-04-15","2015-04-16","2015-04-17","2015-04-18","2015-04-19","2015-04-20","2015-04-21","2015-04-22","2015-04-23","2015-04-24","2015-04-25","2015-04-26","2015-04-27","2015-04-28","2015-04-29","2015-04-30","2015-05-01","2015-05-02","2015-05-03","2015-05-04","2015-05-05","2015-05-06","2015-05-07","2015-05-08","2015-05-09","2015-05-10",{"$f":"EB1+1","v":"2015-05-11"},"2015-05-12","2015-05-13","2015-05-14","2015-05-15","2015-05-16","2015-05-17","2015-05-18","2015-05-19","2015-05-20","2015-05-21","2015-05-22","2015-05-23","2015-05-24","2015-05-25","2015-05-26","2015-05-27","2015-05-28","2015-05-29","2015-05-30","2015-05-31","2015-06-01","2015-06-02","2015-06-03","2015-06-04","2015-06-05","2015-06-06","2015-06-07","2015-06-08","2015-06-09","2015-06-10","2015-06-11","2015-06-12","2015-06-13","2015-06-14","2015-06-15","2015-06-16","2015-06-17","2015-06-18","2015-06-19","2015-06-20","2015-06-21","2015-06-22","2015-06-23","2015-06-24","2015-06-25","2015-06-26","2015-06-27","2015-06-28","2015-06-29","2015-06-30","2015-07-01","2015-07-02","2015-07-03","2015-07-04","2015-07-05","2015-07-06","2015-07-07","2015-07-08","2015-07-09","2015-07-10","2015-07-11","2015-07-12","2015-07-13",{"$f":"GN1+1","v":"2015-07-14"},"2015-07-15","2015-07-16","2015-07-17","2015-07-18","2015-07-19","2015-07-20","2015-07-21","2015-07-22","2015-07-23","2015-07-24","2015-07-25","2015-07-26","2015-07-27","2015-07-28","2015-07-29","2015-07-30","2015-07-31","2015-08-01","2015-08-02","2015-08-03","2015-08-04","2015-08-05","2015-08-06","2015-08-07","2015-08-08","2015-08-09","2015-08-10","2015-08-11","2015-08-12","2015-08-13","2015-08-14","2015-08-15","2015-08-16","2015-08-17","2015-08-18","2015-08-19","2015-08-20","2015-08-21","2015-08-22","2015-08-23","2015-08-24","2015-08-25","2015-08-26","2015-08-27","2015-08-28","2015-08-29","2015-08-30","2015-08-31","2015-09-01","2015-09-02","2015-09-03","2015-09-04","2015-09-05","2015-09-06","2015-09-07","2015-09-08","2015-09-09","2015-09-10","2015-09-11","2015-09-12","2015-09-13","2015-09-14","2015-09-15",{"$f":"IZ1+1","v":"2015-09-16"},"2015-09-17","2015-09-18","2015-09-19","2015-09-20","2015-09-21","2015-09-22","2015-09-23","2015-09-24","2015-09-25","2015-09-26","2015-09-27","2015-09-28","2015-09-29","2015-09-30","2015-10-01","2015-10-02","2015-10-03","2015-10-04","2015-10-05","2015-10-06","2015-10-07","2015-10-08","2015-10-09","2015-10-10","2015-10-11","2015-10-12","2015-10-13","2015-10-14","2015-10-15","2015-10-16","2015-10-17","2015-10-18","2015-10-19","2015-10-20","2015-10-21","2015-10-22","2015-10-23","2015-10-24","2015-10-25","2015-10-26","2015-10-27","2015-10-28","2015-10-29","2015-10-30","2015-10-31","2015-11-01","2015-11-02","2015-11-03","2015-11-04","2015-11-05","2015-11-06","2015-11-07","2015-11-08","2015-11-09","2015-11-10","2015-11-11","2015-11-12","2015-11-13","2015-11-14","2015-11-15","2015-11-16","2015-11-17","2015-11-18",{"$f":"LL1+1","v":"2015-11-19"},"2015-11-20","2015-11-21","2015-11-22","2015-11-23","2015-11-24","2015-11-25","2015-11-26","2015-11-27","2015-11-28","2015-11-29","2015-11-30","2015-12-01","2015-12-02","2015-12-03","2015-12-04","2015-12-05","2015-12-06","2015-12-07","2015-12-08","2015-12-09","2015-12-10","2015-12-11","2015-12-12","2015-12-13","2015-12-14","2015-12-15","2015-12-16","2015-12-17","2015-12-18","2015-12-19","2015-12-20","2015-12-21","2015-12-22","2015-12-23","2015-12-24","2015-12-25","2015-12-26","2015-12-27","2015-12-28","2015-12-29","2015-12-30","2015-12-31",{"$f":"IF(DAY(NC1)=30,NC1+1,\"\")","v":""}]
[null,null,{"$f":"IF(ISERROR(VLOOKUP(Urlaubsplaner!C1,Tabelle1[],1,FALSE)),TEXT(Urlaubsplaner!C1,\"TTT.\"),VLOOKUP(Urlaubsplaner!C1,Tabelle1[],2,FALSE))","v":"Neujahr"},{"$f":"IF(ISERROR(VLOOKUP(Urlaubsplaner!D1,Tabelle1[],1,FALSE)),TEXT(Urlaubsplaner!D1,\"TTT.\"),VLOOKUP(Urlaubsplaner!D1,Tabelle1[],2,FALSE))","v":"Fr."},{"$f":"IF(ISERROR(VLOOKUP(Urlaubsplaner!E1,Tabelle1[],1,FALSE)),TEXT(Urlaubsplaner!E1,\"TTT.\"),VLOOKUP(Urlaubsplaner!E1,Tabelle1[],2,FALSE))","v":"Sa."},{"$f":"IF(ISERROR(VLOOKUP(Urlaubsplaner!F1,Tabelle1[],1,FALSE)),TEXT(Urlaubsplaner!F1,\"TTT.\"),VLOOKUP(Urlaubsplaner!F1,Tabelle1[],2,FALSE))","v":"So."},{"$f":"IF(ISERROR(VLOOKUP(Urlaubsplaner!G1,Tabelle1[],1,FALSE)),TEXT(Urlaubsplaner!G1,\"TTT.\"),VLOOKUP(Urlaubsplaner!G1,Tabelle1[],2,FALSE))","v":"Mo."},{"$f":"IF(ISERROR(VLOOKUP(Urlaubsplaner!H1,Tabelle1[],1,FALSE)),TEXT(Urlaubsplaner!H1,\"TTT.\"),VLOOKUP(Urlaubsplaner!H1,Tabelle1[],2,FALSE))","v":"Hl. 3 Könige"},{"$f":"IF(ISERROR(VLOOKUP(Urlaubsplaner!I1,Tabelle1[],1,FALSE)),TEXT(Urlaubsplaner!I1,\"TTT.\"),VLOOKUP(Urlaubsplaner!I1,Tabelle1[],2,FALSE))","v":"Mi."},{"$f":"IF(ISERROR(VLOOKUP(Urlaubsplaner!J1,Tabelle1[],1,FALSE)),TEXT(Urlaubsplaner!J1,\"TTT.\"),VLOOKUP(Urlaubsplaner!J1,Tabelle1[],2,FALSE))","v":"Do."},{"$f":"IF(ISERROR(VLOOKUP(Urlaubsplaner!K1,Tabelle1[],1,FALSE)),TEXT(Urlaubsplaner!K1,\"TTT.\"),VLOOKUP(Urlaubsplaner!K1,Tabelle1[],2,FALSE))","v":"Fr."},{"$f":"IF(ISERROR(VLOOKUP(Urlaubsplaner!L1,Tabelle1[],1,FALSE)),TEXT(Urlaubsplaner!L1,\"TTT.\"),VLOOKUP(Urlaubsplaner!L1,Tabelle1[],2,FALSE))","v":"Sa."},{"$f":"IF(ISERROR(VLOOKUP(Urlaubsplaner!M1,Tabelle1[],1,FALSE)),TEXT(Urlaubsplaner!M1,\"TTT.\"),VLOOKUP(Urlaubsplaner!M1,Tabelle1[],2,FALSE))","v":"So."},{"$f":"IF(ISERROR(VLOOKUP(Urlaubsplaner!N1,Tabelle1[],1,FALSE)),TEXT(Urlaubsplaner!N1,\"TTT.\"),VLOOKUP(Urlaubsplaner!N1,Tabelle1[],2,FALSE))","v":"Mo."},{"$f":"IF(ISERROR(VLOOKUP(Urlaubsplaner!O1,Tabelle1[],1,FALSE)),TEXT(Urlaubsplaner!O1,\"TTT.\"),VLOOKUP(Urlaubsplaner!O1,Tabelle1[],2,FALSE))","v":"Di."},{"$f":"IF(ISERROR(VLOOKUP(Urlaubsplaner!P1,Tabelle1[],1,FALSE)),TEXT(Urlaubsplaner!P1,\"TTT.\"),VLOOKUP(Urlaubsplaner!P1,Tabelle1[],2,FALSE))","v":"Mi."},{"$f":"IF(ISERROR(VLOOKUP(Urlaubsplaner!Q1,Tabelle1[],1,FALSE)),TEXT(Urlaubsplaner!Q1,\"TTT.\"),VLOOKUP(Urlaubsplaner!Q1,Tabelle1[],2,FALSE))","v":"Do."},{"$f":"IF(ISERROR(VLOOKUP(Urlaubsplaner!R1,Tabelle1[],1,FALSE)),TEXT(Urlaubsplaner!R1,\"TTT.\"),VLOOKUP(Urlaubsplaner!R1,Tabelle1[],2,FALSE))","v":"Fr."},{"$f":"IF(ISERROR(VLOOKUP(Urlaubsplaner!S1,Tabelle1[],1,FALSE)),TEXT(Urlaubsplaner!S1,\"TTT.\"),VLOOKUP(Urlaubsplaner!S1,Tabelle1[],2,FALSE))","v":"Sa."},{"$f":"IF(ISERROR(VLOOKUP(Urlaubsplaner!T1,Tabelle1[],1,FALSE)),TEXT(Urlaubsplaner!T1,\"TTT.\"),VLOOKUP(Urlaubsplaner!T1,Tabelle1[],2,FALSE))","v":"So."},{"$f":"IF(ISERROR(VLOOKUP(Urlaubsplaner!U1,Tabelle1[],1,FALSE)),TEXT(Urlaubsplaner!U1,\"TTT.\"),VLOOKUP(Urlaubsplaner!U1,Tabelle1[],2,FALSE))","v":"Mo."},{"$f":"IF(ISERROR(VLOOKUP(Urlaubsplaner!V1,Tabelle1[],1,FALSE)),TEXT(Urlaubsplaner!V1,\"TTT.\"),VLOOKUP(Urlaubsplaner!V1,Tabelle1[],2,FALSE))","v":"Di."},{"$f":"IF(ISERROR(VLOOKUP(Urlaubsplaner!W1,Tabelle1[],1,FALSE)),TEXT(Urlaubsplaner!W1,\"TTT.\"),VLOOKUP(Urlaubsplaner!W1,Tabelle1[],2,FALSE))","v":"Mi."},{"$f":"IF(ISERROR(VLOOKUP(Urlaubsplaner!X1,Tabelle1[],1,FALSE)),TEXT(Urlaubsplaner!X1,\"TTT.\"),VLOOKUP(Urlaubsplaner!X1,Tabelle1[],2,FALSE))","v":"Do."},{"$f":"IF(ISERROR(VLOOKUP(Urlaubsplaner!Y1,Tabelle1[],1,FALSE)),TEXT(Urlaubsplaner!Y1,\"TTT.\"),VLOOKUP(Urlaubsplaner!Y1,Tabelle1[],2,FALSE))","v":"Fr."},{"$f":"IF(ISERROR(VLOOKUP(Urlaubsplaner!Z1,Tabelle1[],1,FALSE)),TEXT(Urlaubsplaner!Z1,\"TTT.\"),VLOOKUP(Urlaubsplaner!Z1,Tabelle1[],2,FALSE))","v":"Sa."},{"$f":"IF(ISERROR(VLOOKUP(Urlaubsplaner!AA1,Tabelle1[],1,FALSE)),TEXT(Urlaubsplaner!AA1,\"TTT.\"),VLOOKUP(Urlaubsplaner!AA1,Tabelle1[],2,FALSE))","v":"So."},{"$f":"IF(ISERROR(VLOOKUP(Urlaubsplaner!AB1,Tabelle1[],1,FALSE)),TEXT(Urlaubsplaner!AB1,\"TTT.\"),VLOOKUP(Urlaubsplaner!AB1,Tabelle1[],2,FALSE))","v":"Mo."},{"$f":"IF(ISERROR(VLOOKUP(Urlaubsplaner!AC1,Tabelle1[],1,FALSE)),TEXT(Urlaubsplaner!AC1,\"TTT.\"),VLOOKUP(Urlaubsplaner!AC1,Tabelle1[],2,FALSE))","v":"Di."},{"$f":"IF(ISERROR(VLOOKUP(Urlaubsplaner!AD1,Tabelle1[],1,FALSE)),TEXT(Urlaubsplaner!AD1,\"TTT.\"),VLOOKUP(Urlaubsplaner!AD1,Tabelle1[],2,FALSE))","v":"Mi."},{"$f":"IF(ISERROR(VLOOKUP(Urlaubsplaner!AE1,Tabelle1[],1,FALSE)),TEXT(Urlaubsplaner!AE1,\"TTT.\"),VLOOKUP(Urlaubsplaner!AE1,Tabelle1[],2,FALSE))","v":"Do."},{"$f":"IF(ISERROR(VLOOKUP(Urlaubsplaner!AF1,Tabelle1[],1,FALSE)),TEXT(Urlaubsplaner!AF1,\"TTT.\"),VLOOKUP(Urlaubsplaner!AF1,Tabelle1[],2,FALSE))","v":"Fr."},{"$f":"IF(ISERROR(VLOOKUP(Urlaubsplaner!AG1,Tabelle1[],1,FALSE)),TEXT(Urlaubsplaner!AG1,\"TTT.\"),VLOOKUP(Urlaubsplaner!AG1,Tabelle1[],2,FALSE))","v":"Sa."},{"$f":"IF(ISERROR(VLOOKUP(Urlaubsplaner!AH1,Tabelle1[],1,FALSE)),TEXT(Urlaubsplaner!AH1,\"TTT.\"),VLOOKUP(Urlaubsplaner!AH1,Tabelle1[],2,FALSE))","v":"So."},{"$f":"IF(ISERROR(VLOOKUP(Urlaubsplaner!AI1,Tabelle1[],1,FALSE)),TEXT(Urlaubsplaner!AI1,\"TTT.\"),VLOOKUP(Urlaubsplaner!AI1,Tabelle1[],2,FALSE))","v":"Mo."},{"$f":"IF(ISERROR(VLOOKUP(Urlaubsplaner!AJ1,Tabelle1[],1,FALSE)),TEXT(Urlaubsplaner!AJ1,\"TTT.\"),VLOOKUP(Urlaubsplaner!AJ1,Tabelle1[],2,FALSE))","v":"Di."},{"$f":"IF(ISERROR(VLOOKUP(Urlaubsplaner!AK1,Tabelle1[],1,FALSE)),TEXT(Urlaubsplaner!AK1,\"TTT.\"),VLOOKUP(Urlaubsplaner!AK1,Tabelle1[],2,FALSE))","v":"Mi."},{"$f":"IF(ISERROR(VLOOKUP(Urlaubsplaner!AL1,Tabelle1[],1,FALSE)),TEXT(Urlaubsplaner!AL1,\"TTT.\"),VLOOKUP(Urlaubsplaner!AL1,Tabelle1[],2,FALSE))","v":"Do."},{"$f":"IF(ISERROR(VLOOKUP(Urlaubsplaner!AM1,Tabelle1[],1,FALSE)),TEXT(Urlaubsplaner!AM1,\"TTT.\"),VLOOKUP(Urlaubsplaner!AM1,Tabelle1[],2,FALSE))","v":"Fr."},{"$f":"IF(ISERROR(VLOOKUP(Urlaubsplaner!AN1,Tabelle1[],1,FALSE)),TEXT(Urlaubsplaner!AN1,\"TTT.\"),VLOOKUP(Urlaubsplaner!AN1,Tabelle1[],2,FALSE))","v":"Sa."},{"$f":"IF(ISERROR(VLOOKUP(Urlaubsplaner!AO1,Tabelle1[],1,FALSE)),TEXT(Urlaubsplaner!AO1,\"TTT.\"),VLOOKUP(Urlaubsplaner!AO1,Tabelle1[],2,FALSE))","v":"So."},{"$f":"IF(ISERROR(VLOOKUP(Urlaubsplaner!AP1,Tabelle1[],1,FALSE)),TEXT(Urlaubsplaner!AP1,\"TTT.\"),VLOOKUP(Urlaubsplaner!AP1,Tabelle1[],2,FALSE))","v":"Mo."},{"$f":"IF(ISERROR(VLOOKUP(Urlaubsplaner!AQ1,Tabelle1[],1,FALSE)),TEXT(Urlaubsplaner!AQ1,\"TTT.\"),VLOOKUP(Urlaubsplaner!AQ1,Tabelle1[],2,FALSE))","v":"Di."},{"$f":"IF(ISERROR(VLOOKUP(Urlaubsplaner!AR1,Tabelle1[],1,FALSE)),TEXT(Urlaubsplaner!AR1,\"TTT.\"),VLOOKUP(Urlaubsplaner!AR1,Tabelle1[],2,FALSE))","v":"Mi."},{"$f":"IF(ISERROR(VLOOKUP(Urlaubsplaner!AS1,Tabelle1[],1,FALSE)),TEXT(Urlaubsplaner!AS1,\"TTT.\"),VLOOKUP(Urlaubsplaner!AS1,Tabelle1[],2,FALSE))","v":"Do."},{"$f":"IF(ISERROR(VLOOKUP(Urlaubsplaner!AT1,Tabelle1[],1,FALSE)),TEXT(Urlaubsplaner!AT1,\"TTT.\"),VLOOKUP(Urlaubsplaner!AT1,Tabelle1[],2,FALSE))","v":"Fr."},{"$f":"IF(ISERROR(VLOOKUP(Urlaubsplaner!AU1,Tabelle1[],1,FALSE)),TEXT(Urlaubsplaner!AU1,\"TTT.\"),VLOOKUP(Urlaubsplaner!AU1,Tabelle1[],2,FALSE))","v":"Sa."},{"$f":"IF(ISERROR(VLOOKUP(Urlaubsplaner!AV1,Tabelle1[],1,FALSE)),TEXT(Urlaubsplaner!AV1,\"TTT.\"),VLOOKUP(Urlaubsplaner!AV1,Tabelle1[],2,FALSE))","v":"So."},{"$f":"IF(ISERROR(VLOOKUP(Urlaubsplaner!AW1,Tabelle1[],1,FALSE)),TEXT(Urlaubsplaner!AW1,\"TTT.\"),VLOOKUP(Urlaubsplaner!AW1,Tabelle1[],2,FALSE))","v":"Mo."},{"$f":"IF(ISERROR(VLOOKUP(Urlaubsplaner!AX1,Tabelle1[],1,FALSE)),TEXT(Urlaubsplaner!AX1,\"TTT.\"),VLOOKUP(Urlaubsplaner!AX1,Tabelle1[],2,FALSE))","v":"Di."},{"$f":"IF(ISERROR(VLOOKUP(Urlaubsplaner!AY1,Tabelle1[],1,FALSE)),TEXT(Urlaubsplaner!AY1,\"TTT.\"),VLOOKUP(Urlaubsplaner!AY1,Tabelle1[],2,FALSE))","v":"Mi."},{"$f":"IF(ISERROR(VLOOKUP(Urlaubsplaner!AZ1,Tabelle1[],1,FALSE)),TEXT(Urlaubsplaner!AZ1,\"TTT.\"),VLOOKUP(Urlaubsplaner!AZ1,Tabelle1[],2,FALSE))","v":"Do."},{"$f":"IF(ISERROR(VLOOKUP(Urlaubsplaner!BA1,Tabelle1[],1,FALSE)),TEXT(Urlaubsplaner!BA1,\"TTT.\"),VLOOKUP(Urlaubsplaner!BA1,Tabelle1[],2,FALSE))","v":"Fr."},{"$f":"IF(ISERROR(VLOOKUP(Urlaubsplaner!BB1,Tabelle1[],1,FALSE)),TEXT(Urlaubsplaner!BB1,\"TTT.\"),VLOOKUP(Urlaubsplaner!BB1,Tabelle1[],2,FALSE))","v":"Sa."},{"$f":"IF(ISERROR(VLOOKUP(Urlaubsplaner!BC1,Tabelle1[],1,FALSE)),TEXT(Urlaubsplaner!BC1,\"TTT.\"),VLOOKUP(Urlaubsplaner!BC1,Tabelle1[],2,FALSE))","v":"So."},{"$f":"IF(ISERROR(VLOOKUP(Urlaubsplaner!BD1,Tabelle1[],1,FALSE)),TEXT(Urlaubsplaner!BD1,\"TTT.\"),VLOOKUP(Urlaubsplaner!BD1,Tabelle1[],2,FALSE))","v":"Mo."},{"$f":"IF(ISERROR(VLOOKUP(Urlaubsplaner!BE1,Tabelle1[],1,FALSE)),TEXT(Urlaubsplaner!BE1,\"TTT.\"),VLOOKUP(Urlaubsplaner!BE1,Tabelle1[],2,FALSE))","v":"Di."},{"$f":"IF(ISERROR(VLOOKUP(Urlaubsplaner!BF1,Tabelle1[],1,FALSE)),TEXT(Urlaubsplaner!BF1,\"TTT.\"),VLOOKUP(Urlaubsplaner!BF1,Tabelle1[],2,FALSE))","v":"Mi."},{"$f":"IF(ISERROR(VLOOKUP(Urlaubsplaner!BG1,Tabelle1[],1,FALSE)),TEXT(Urlaubsplaner!BG1,\"TTT.\"),VLOOKUP(Urlaubsplaner!BG1,Tabelle1[],2,FALSE))","v":"Do."},{"$f":"IF(ISERROR(VLOOKUP(Urlaubsplaner!BH1,Tabelle1[],1,FALSE)),TEXT(Urlaubsplaner!BH1,\"TTT.\"),VLOOKUP(Urlaubsplaner!BH1,Tabelle1[],2,FALSE))","v":"Fr."},{"$f":"IF(ISERROR(VLOOKUP(Urlaubsplaner!BI1,Tabelle1[],1,FALSE)),TEXT(Urlaubsplaner!BI1,\"TTT.\"),VLOOKUP(Urlaubsplaner!BI1,Tabelle1[],2,FALSE))","v":"Sa."},{"$f":"IF(ISERROR(VLOOKUP(Urlaubsplaner!BJ1,Tabelle1[],1,FALSE)),TEXT(Urlaubsplaner!BJ1,\"TTT.\"),VLOOKUP(Urlaubsplaner!BJ1,Tabelle1[],2,FALSE))","v":"So."},{"$f":"IF(ISERROR(VLOOKUP(Urlaubsplaner!BK1,Tabelle1[],1,FALSE)),TEXT(Urlaubsplaner!BK1,\"TTT.\"),VLOOKUP(Urlaubsplaner!BK1,Tabelle1[],2,FALSE))","v":"Mo."},{"$f":"IF(ISERROR(VLOOKUP(Urlaubsplaner!BL1,Tabelle1[],1,FALSE)),TEXT(Urlaubsplaner!BL1,\"TTT.\"),VLOOKUP(Urlaubsplaner!BL1,Tabelle1[],2,FALSE))","v":"Di."},{"$f":"IF(ISERROR(VLOOKUP(Urlaubsplaner!BM1,Tabelle1[],1,FALSE)),TEXT(Urlaubsplaner!BM1,\"TTT.\"),VLOOKUP(Urlaubsplaner!BM1,Tabelle1[],2,FALSE))","v":"Mi."},{"$f":"IF(ISERROR(VLOOKUP(Urlaubsplaner!BN1,Tabelle1[],1,FALSE)),TEXT(Urlaubsplaner!BN1,\"TTT.\"),VLOOKUP(Urlaubsplaner!BN1,Tabelle1[],2,FALSE))","v":"Do."},{"$f":"IF(ISERROR(VLOOKUP(Urlaubsplaner!BO1,Tabelle1[],1,FALSE)),TEXT(Urlaubsplaner!BO1,\"TTT.\"),VLOOKUP(Urlaubsplaner!BO1,Tabelle1[],2,FALSE))","v":"Fr."},{"$f":"IF(ISERROR(VLOOKUP(Urlaubsplaner!BP1,Tabelle1[],1,FALSE)),TEXT(Urlaubsplaner!BP1,\"TTT.\"),VLOOKUP(Urlaubsplaner!BP1,Tabelle1[],2,FALSE))","v":"Sa."},{"$f":"IF(ISERROR(VLOOKUP(Urlaubsplaner!BQ1,Tabelle1[],1,FALSE)),TEXT(Urlaubsplaner!BQ1,\"TTT.\"),VLOOKUP(Urlaubsplaner!BQ1,Tabelle1[],2,FALSE))","v":"So."},{"$f":"IF(ISERROR(VLOOKUP(Urlaubsplaner!BR1,Tabelle1[],1,FALSE)),TEXT(Urlaubsplaner!BR1,\"TTT.\"),VLOOKUP(Urlaubsplaner!BR1,Tabelle1[],2,FALSE))","v":"Mo."},{"$f":"IF(ISERROR(VLOOKUP(Urlaubsplaner!BS1,Tabelle1[],1,FALSE)),TEXT(Urlaubsplaner!BS1,\"TTT.\"),VLOOKUP(Urlaubsplaner!BS1,Tabelle1[],2,FALSE))","v":"Di."},{"$f":"IF(ISERROR(VLOOKUP(Urlaubsplaner!BT1,Tabelle1[],1,FALSE)),TEXT(Urlaubsplaner!BT1,\"TTT.\"),VLOOKUP(Urlaubsplaner!BT1,Tabelle1[],2,FALSE))","v":"Mi."},{"$f":"IF(ISERROR(VLOOKUP(Urlaubsplaner!BU1,Tabelle1[],1,FALSE)),TEXT(Urlaubsplaner!BU1,\"TTT.\"),VLOOKUP(Urlaubsplaner!BU1,Tabelle1[],2,FALSE))","v":"Do."},{"$f":"IF(ISERROR(VLOOKUP(Urlaubsplaner!BV1,Tabelle1[],1,FALSE)),TEXT(Urlaubsplaner!BV1,\"TTT.\"),VLOOKUP(Urlaubsplaner!BV1,Tabelle1[],2,FALSE))","v":"Fr."},{"$f":"IF(ISERROR(VLOOKUP(Urlaubsplaner!BW1,Tabelle1[],1,FALSE)),TEXT(Urlaubsplaner!BW1,\"TTT.\"),VLOOKUP(Urlaubsplaner!BW1,Tabelle1[],2,FALSE))","v":"Sa."},{"$f":"IF(ISERROR(VLOOKUP(Urlaubsplaner!BX1,Tabelle1[],1,FALSE)),TEXT(Urlaubsplaner!BX1,\"TTT.\"),VLOOKUP(Urlaubsplaner!BX1,Tabelle1[],2,FALSE))","v":"So."},{"$f":"IF(ISERROR(VLOOKUP(Urlaubsplaner!BY1,Tabelle1[],1,FALSE)),TEXT(Urlaubsplaner!BY1,\"TTT.\"),VLOOKUP(Urlaubsplaner!BY1,Tabelle1[],2,FALSE))","v":"Mo."},{"$f":"IF(ISERROR(VLOOKUP(Urlaubsplaner!BZ1,Tabelle1[],1,FALSE)),TEXT(Urlaubsplaner!BZ1,\"TTT.\"),VLOOKUP(Urlaubsplaner!BZ1,Tabelle1[],2,FALSE))","v":"Di."},{"$f":"IF(ISERROR(VLOOKUP(Urlaubsplaner!CA1,Tabelle1[],1,FALSE)),TEXT(Urlaubsplaner!CA1,\"TTT.\"),VLOOKUP(Urlaubsplaner!CA1,Tabelle1[],2,FALSE))","v":"Mi."},{"$f":"IF(ISERROR(VLOOKUP(Urlaubsplaner!CB1,Tabelle1[],1,FALSE)),TEXT(Urlaubsplaner!CB1,\"TTT.\"),VLOOKUP(Urlaubsplaner!CB1,Tabelle1[],2,FALSE))","v":"Do."},{"$f":"IF(ISERROR(VLOOKUP(Urlaubsplaner!CC1,Tabelle1[],1,FALSE)),TEXT(Urlaubsplaner!CC1,\"TTT.\"),VLOOKUP(Urlaubsplaner!CC1,Tabelle1[],2,FALSE))","v":"Fr."},{"$f":"IF(ISERROR(VLOOKUP(Urlaubsplaner!CD1,Tabelle1[],1,FALSE)),TEXT(Urlaubsplaner!CD1,\"TTT.\"),VLOOKUP(Urlaubsplaner!CD1,Tabelle1[],2,FALSE))","v":"Sa."},{"$f":"IF(ISERROR(VLOOKUP(Urlaubsplaner!CE1,Tabelle1[],1,FALSE)),TEXT(Urlaubsplaner!CE1,\"TTT.\"),VLOOKUP(Urlaubsplaner!CE1,Tabelle1[],2,FALSE))","v":"So."},{"$f":"IF(ISERROR(VLOOKUP(Urlaubsplaner!CF1,Tabelle1[],1,FALSE)),TEXT(Urlaubsplaner!CF1,\"TTT.\"),VLOOKUP(Urlaubsplaner!CF1,Tabelle1[],2,FALSE))","v":"Mo."},{"$f":"IF(ISERROR(VLOOKUP(Urlaubsplaner!CG1,Tabelle1[],1,FALSE)),TEXT(Urlaubsplaner!CG1,\"TTT.\"),VLOOKUP(Urlaubsplaner!CG1,Tabelle1[],2,FALSE))","v":"Di."},{"$f":"IF(ISERROR(VLOOKUP(Urlaubsplaner!CH1,Tabelle1[],1,FALSE)),TEXT(Urlaubsplaner!CH1,\"TTT.\"),VLOOKUP(Urlaubsplaner!CH1,Tabelle1[],2,FALSE))","v":"Mi."},{"$f":"IF(ISERROR(VLOOKUP(Urlaubsplaner!CI1,Tabelle1[],1,FALSE)),TEXT(Urlaubsplaner!CI1,\"TTT.\"),VLOOKUP(Urlaubsplaner!CI1,Tabelle1[],2,FALSE))","v":"Do."},{"$f":"IF(ISERROR(VLOOKUP(Urlaubsplaner!CJ1,Tabelle1[],1,FALSE)),TEXT(Urlaubsplaner!CJ1,\"TTT.\"),VLOOKUP(Urlaubsplaner!CJ1,Tabelle1[],2,FALSE))","v":"Fr."},{"$f":"IF(ISERROR(VLOOKUP(Urlaubsplaner!CK1,Tabelle1[],1,FALSE)),TEXT(Urlaubsplaner!CK1,\"TTT.\"),VLOOKUP(Urlaubsplaner!CK1,Tabelle1[],2,FALSE))","v":"Sa."},{"$f":"IF(ISERROR(VLOOKUP(Urlaubsplaner!CL1,Tabelle1[],1,FALSE)),TEXT(Urlaubsplaner!CL1,\"TTT.\"),VLOOKUP(Urlaubsplaner!CL1,Tabelle1[],2,FALSE))","v":"So."},{"$f":"IF(ISERROR(VLOOKUP(Urlaubsplaner!CM1,Tabelle1[],1,FALSE)),TEXT(Urlaubsplaner!CM1,\"TTT.\"),VLOOKUP(Urlaubsplaner!CM1,Tabelle1[],2,FALSE))","v":"Mo."},{"$f":"IF(ISERROR(VLOOKUP(Urlaubsplaner!CN1,Tabelle1[],1,FALSE)),TEXT(Urlaubsplaner!CN1,\"TTT.\"),VLOOKUP(Urlaubsplaner!CN1,Tabelle1[],2,FALSE))","v":"Di."},{"$f":"IF(ISERROR(VLOOKUP(Urlaubsplaner!CO1,Tabelle1[],1,FALSE)),TEXT(Urlaubsplaner!CO1,\"TTT.\"),VLOOKUP(Urlaubsplaner!CO1,Tabelle1[],2,FALSE))","v":"Mi."},{"$f":"IF(ISERROR(VLOOKUP(Urlaubsplaner!CP1,Tabelle1[],1,FALSE)),TEXT(Urlaubsplaner!CP1,\"TTT.\"),VLOOKUP(Urlaubsplaner!CP1,Tabelle1[],2,FALSE))","v":"Do."},{"$f":"IF(ISERROR(VLOOKUP(Urlaubsplaner!CQ1,Tabelle1[],1,FALSE)),TEXT(Urlaubsplaner!CQ1,\"TTT.\"),VLOOKUP(Urlaubsplaner!CQ1,Tabelle1[],2,FALSE))","v":"Karfreitag"},{"$f":"IF(ISERROR(VLOOKUP(Urlaubsplaner!CR1,Tabelle1[],1,FALSE)),TEXT(Urlaubsplaner!CR1,\"TTT.\"),VLOOKUP(Urlaubsplaner!CR1,Tabelle1[],2,FALSE))","v":"Sa."},{"$f":"IF(ISERROR(VLOOKUP(Urlaubsplaner!CS1,Tabelle1[],1,FALSE)),TEXT(Urlaubsplaner!CS1,\"TTT.\"),VLOOKUP(Urlaubsplaner!CS1,Tabelle1[],2,FALSE))","v":"Ostern"},{"$f":"IF(ISERROR(VLOOKUP(Urlaubsplaner!CT1,Tabelle1[],1,FALSE)),TEXT(Urlaubsplaner!CT1,\"TTT.\"),VLOOKUP(Urlaubsplaner!CT1,Tabelle1[],2,FALSE))","v":"Ostermontag"},{"$f":"IF(ISERROR(VLOOKUP(Urlaubsplaner!CU1,Tabelle1[],1,FALSE)),TEXT(Urlaubsplaner!CU1,\"TTT.\"),VLOOKUP(Urlaubsplaner!CU1,Tabelle1[],2,FALSE))","v":"Di."},{"$f":"IF(ISERROR(VLOOKUP(Urlaubsplaner!CV1,Tabelle1[],1,FALSE)),TEXT(Urlaubsplaner!CV1,\"TTT.\"),VLOOKUP(Urlaubsplaner!CV1,Tabelle1[],2,FALSE))","v":"Mi."},{"$f":"IF(ISERROR(VLOOKUP(Urlaubsplaner!CW1,Tabelle1[],1,FALSE)),TEXT(Urlaubsplaner!CW1,\"TTT.\"),VLOOKUP(Urlaubsplaner!CW1,Tabelle1[],2,FALSE))","v":"Do."},{"$f":"IF(ISERROR(VLOOKUP(Urlaubsplaner!CX1,Tabelle1[],1,FALSE)),TEXT(Urlaubsplaner!CX1,\"TTT.\"),VLOOKUP(Urlaubsplaner!CX1,Tabelle1[],2,FALSE))","v":"Fr."},{"$f":"IF(ISERROR(VLOOKUP(Urlaubsplaner!CY1,Tabelle1[],1,FALSE)),TEXT(Urlaubsplaner!CY1,\"TTT.\"),VLOOKUP(Urlaubsplaner!CY1,Tabelle1[],2,FALSE))","v":"Sa."},{"$f":"IF(ISERROR(VLOOKUP(Urlaubsplaner!CZ1,Tabelle1[],1,FALSE)),TEXT(Urlaubsplaner!CZ1,\"TTT.\"),VLOOKUP(Urlaubsplaner!CZ1,Tabelle1[],2,FALSE))","v":"So."},{"$f":"IF(ISERROR(VLOOKUP(Urlaubsplaner!DA1,Tabelle1[],1,FALSE)),TEXT(Urlaubsplaner!DA1,\"TTT.\"),VLOOKUP(Urlaubsplaner!DA1,Tabelle1[],2,FALSE))","v":"Mo."},{"$f":"IF(ISERROR(VLOOKUP(Urlaubsplaner!DB1,Tabelle1[],1,FALSE)),TEXT(Urlaubsplaner!DB1,\"TTT.\"),VLOOKUP(Urlaubsplaner!DB1,Tabelle1[],2,FALSE))","v":"Di."},{"$f":"IF(ISERROR(VLOOKUP(Urlaubsplaner!DC1,Tabelle1[],1,FALSE)),TEXT(Urlaubsplaner!DC1,\"TTT.\"),VLOOKUP(Urlaubsplaner!DC1,Tabelle1[],2,FALSE))","v":"Mi."},{"$f":"IF(ISERROR(VLOOKUP(Urlaubsplaner!DD1,Tabelle1[],1,FALSE)),TEXT(Urlaubsplaner!DD1,\"TTT.\"),VLOOKUP(Urlaubsplaner!DD1,Tabelle1[],2,FALSE))","v":"Do."},{"$f":"IF(ISERROR(VLOOKUP(Urlaubsplaner!DE1,Tabelle1[],1,FALSE)),TEXT(Urlaubsplaner!DE1,\"TTT.\"),VLOOKUP(Urlaubsplaner!DE1,Tabelle1[],2,FALSE))","v":"Fr."},{"$f":"IF(ISERROR(VLOOKUP(Urlaubsplaner!DF1,Tabelle1[],1,FALSE)),TEXT(Urlaubsplaner!DF1,\"TTT.\"),VLOOKUP(Urlaubsplaner!DF1,Tabelle1[],2,FALSE))","v":"Sa."},{"$f":"IF(ISERROR(VLOOKUP(Urlaubsplaner!DG1,Tabelle1[],1,FALSE)),TEXT(Urlaubsplaner!DG1,\"TTT.\"),VLOOKUP(Urlaubsplaner!DG1,Tabelle1[],2,FALSE))","v":"So."},{"$f":"IF(ISERROR(VLOOKUP(Urlaubsplaner!DH1,Tabelle1[],1,FALSE)),TEXT(Urlaubsplaner!DH1,\"TTT.\"),VLOOKUP(Urlaubsplaner!DH1,Tabelle1[],2,FALSE))","v":"Mo."},{"$f":"IF(ISERROR(VLOOKUP(Urlaubsplaner!DI1,Tabelle1[],1,FALSE)),TEXT(Urlaubsplaner!DI1,\"TTT.\"),VLOOKUP(Urlaubsplaner!DI1,Tabelle1[],2,FALSE))","v":"Di."},{"$f":"IF(ISERROR(VLOOKUP(Urlaubsplaner!DJ1,Tabelle1[],1,FALSE)),TEXT(Urlaubsplaner!DJ1,\"TTT.\"),VLOOKUP(Urlaubsplaner!DJ1,Tabelle1[],2,FALSE))","v":"Mi."},{"$f":"IF(ISERROR(VLOOKUP(Urlaubsplaner!DK1,Tabelle1[],1,FALSE)),TEXT(Urlaubsplaner!DK1,\"TTT.\"),VLOOKUP(Urlaubsplaner!DK1,Tabelle1[],2,FALSE))","v":"Do."},{"$f":"IF(ISERROR(VLOOKUP(Urlaubsplaner!DL1,Tabelle1[],1,FALSE)),TEXT(Urlaubsplaner!DL1,\"TTT.\"),VLOOKUP(Urlaubsplaner!DL1,Tabelle1[],2,FALSE))","v":"Fr."},{"$f":"IF(ISERROR(VLOOKUP(Urlaubsplaner!DM1,Tabelle1[],1,FALSE)),TEXT(Urlaubsplaner!DM1,\"TTT.\"),VLOOKUP(Urlaubsplaner!DM1,Tabelle1[],2,FALSE))","v":"Sa."},{"$f":"IF(ISERROR(VLOOKUP(Urlaubsplaner!DN1,Tabelle1[],1,FALSE)),TEXT(Urlaubsplaner!DN1,\"TTT.\"),VLOOKUP(Urlaubsplaner!DN1,Tabelle1[],2,FALSE))","v":"So."},{"$f":"IF(ISERROR(VLOOKUP(Urlaubsplaner!DO1,Tabelle1[],1,FALSE)),TEXT(Urlaubsplaner!DO1,\"TTT.\"),VLOOKUP(Urlaubsplaner!DO1,Tabelle1[],2,FALSE))","v":"Mo."},{"$f":"IF(ISERROR(VLOOKUP(Urlaubsplaner!DP1,Tabelle1[],1,FALSE)),TEXT(Urlaubsplaner!DP1,\"TTT.\"),VLOOKUP(Urlaubsplaner!DP1,Tabelle1[],2,FALSE))","v":"Di."},{"$f":"IF(ISERROR(VLOOKUP(Urlaubsplaner!DQ1,Tabelle1[],1,FALSE)),TEXT(Urlaubsplaner!DQ1,\"TTT.\"),VLOOKUP(Urlaubsplaner!DQ1,Tabelle1[],2,FALSE))","v":"Mi."},{"$f":"IF(ISERROR(VLOOKUP(Urlaubsplaner!DR1,Tabelle1[],1,FALSE)),TEXT(Urlaubsplaner!DR1,\"TTT.\"),VLOOKUP(Urlaubsplaner!DR1,Tabelle1[],2,FALSE))","v":"Do."},{"$f":"IF(ISERROR(VLOOKUP(Urlaubsplaner!DS1,Tabelle1[],1,FALSE)),TEXT(Urlaubsplaner!DS1,\"TTT.\"),VLOOKUP(Urlaubsplaner!DS1,Tabelle1[],2,FALSE))","v":"1. Mai"},{"$f":"IF(ISERROR(VLOOKUP(Urlaubsplaner!DT1,Tabelle1[],1,FALSE)),TEXT(Urlaubsplaner!DT1,\"TTT.\"),VLOOKUP(Urlaubsplaner!DT1,Tabelle1[],2,FALSE))","v":"Sa."},{"$f":"IF(ISERROR(VLOOKUP(Urlaubsplaner!DU1,Tabelle1[],1,FALSE)),TEXT(Urlaubsplaner!DU1,\"TTT.\"),VLOOKUP(Urlaubsplaner!DU1,Tabelle1[],2,FALSE))","v":"So."},{"$f":"IF(ISERROR(VLOOKUP(Urlaubsplaner!DV1,Tabelle1[],1,FALSE)),TEXT(Urlaubsplaner!DV1,\"TTT.\"),VLOOKUP(Urlaubsplaner!DV1,Tabelle1[],2,FALSE))","v":"Mo."},{"$f":"IF(ISERROR(VLOOKUP(Urlaubsplaner!DW1,Tabelle1[],1,FALSE)),TEXT(Urlaubsplaner!DW1,\"TTT.\"),VLOOKUP(Urlaubsplaner!DW1,Tabelle1[],2,FALSE))","v":"Di."},{"$f":"IF(ISERROR(VLOOKUP(Urlaubsplaner!DX1,Tabelle1[],1,FALSE)),TEXT(Urlaubsplaner!DX1,\"TTT.\"),VLOOKUP(Urlaubsplaner!DX1,Tabelle1[],2,FALSE))","v":"Mi."},{"$f":"IF(ISERROR(VLOOKUP(Urlaubsplaner!DY1,Tabelle1[],1,FALSE)),TEXT(Urlaubsplaner!DY1,\"TTT.\"),VLOOKUP(Urlaubsplaner!DY1,Tabelle1[],2,FALSE))","v":"Do."},{"$f":"IF(ISERROR(VLOOKUP(Urlaubsplaner!DZ1,Tabelle1[],1,FALSE)),TEXT(Urlaubsplaner!DZ1,\"TTT.\"),VLOOKUP(Urlaubsplaner!DZ1,Tabelle1[],2,FALSE))","v":"Fr."},{"$f":"IF(ISERROR(VLOOKUP(Urlaubsplaner!EA1,Tabelle1[],1,FALSE)),TEXT(Urlaubsplaner!EA1,\"TTT.\"),VLOOKUP(Urlaubsplaner!EA1,Tabelle1[],2,FALSE))","v":"Sa."},{"$f":"IF(ISERROR(VLOOKUP(Urlaubsplaner!EB1,Tabelle1[],1,FALSE)),TEXT(Urlaubsplaner!EB1,\"TTT.\"),VLOOKUP(Urlaubsplaner!EB1,Tabelle1[],2,FALSE))","v":"So."},{"$f":"IF(ISERROR(VLOOKUP(Urlaubsplaner!EC1,Tabelle1[],1,FALSE)),TEXT(Urlaubsplaner!EC1,\"TTT.\"),VLOOKUP(Urlaubsplaner!EC1,Tabelle1[],2,FALSE))","v":"Mo."},{"$f":"IF(ISERROR(VLOOKUP(Urlaubsplaner!ED1,Tabelle1[],1,FALSE)),TEXT(Urlaubsplaner!ED1,\"TTT.\"),VLOOKUP(Urlaubsplaner!ED1,Tabelle1[],2,FALSE))","v":"Di."},{"$f":"IF(ISERROR(VLOOKUP(Urlaubsplaner!EE1,Tabelle1[],1,FALSE)),TEXT(Urlaubsplaner!EE1,\"TTT.\"),VLOOKUP(Urlaubsplaner!EE1,Tabelle1[],2,FALSE))","v":"Mi."},{"$f":"IF(ISERROR(VLOOKUP(Urlaubsplaner!EF1,Tabelle1[],1,FALSE)),TEXT(Urlaubsplaner!EF1,\"TTT.\"),VLOOKUP(Urlaubsplaner!EF1,Tabelle1[],2,FALSE))","v":"Himmelfahrt"},{"$f":"IF(ISERROR(VLOOKUP(Urlaubsplaner!EG1,Tabelle1[],1,FALSE)),TEXT(Urlaubsplaner!EG1,\"TTT.\"),VLOOKUP(Urlaubsplaner!EG1,Tabelle1[],2,FALSE))","v":"Fr."},{"$f":"IF(ISERROR(VLOOKUP(Urlaubsplaner!EH1,Tabelle1[],1,FALSE)),TEXT(Urlaubsplaner!EH1,\"TTT.\"),VLOOKUP(Urlaubsplaner!EH1,Tabelle1[],2,FALSE))","v":"Sa."},{"$f":"IF(ISERROR(VLOOKUP(Urlaubsplaner!EI1,Tabelle1[],1,FALSE)),TEXT(Urlaubsplaner!EI1,\"TTT.\"),VLOOKUP(Urlaubsplaner!EI1,Tabelle1[],2,FALSE))","v":"So."},{"$f":"IF(ISERROR(VLOOKUP(Urlaubsplaner!EJ1,Tabelle1[],1,FALSE)),TEXT(Urlaubsplaner!EJ1,\"TTT.\"),VLOOKUP(Urlaubsplaner!EJ1,Tabelle1[],2,FALSE))","v":"Mo."},{"$f":"IF(ISERROR(VLOOKUP(Urlaubsplaner!EK1,Tabelle1[],1,FALSE)),TEXT(Urlaubsplaner!EK1,\"TTT.\"),VLOOKUP(Urlaubsplaner!EK1,Tabelle1[],2,FALSE))","v":"Di."},{"$f":"IF(ISERROR(VLOOKUP(Urlaubsplaner!EL1,Tabelle1[],1,FALSE)),TEXT(Urlaubsplaner!EL1,\"TTT.\"),VLOOKUP(Urlaubsplaner!EL1,Tabelle1[],2,FALSE))","v":"Mi."},{"$f":"IF(ISERROR(VLOOKUP(Urlaubsplaner!EM1,Tabelle1[],1,FALSE)),TEXT(Urlaubsplaner!EM1,\"TTT.\"),VLOOKUP(Urlaubsplaner!EM1,Tabelle1[],2,FALSE))","v":"Do."},{"$f":"IF(ISERROR(VLOOKUP(Urlaubsplaner!EN1,Tabelle1[],1,FALSE)),TEXT(Urlaubsplaner!EN1,\"TTT.\"),VLOOKUP(Urlaubsplaner!EN1,Tabelle1[],2,FALSE))","v":"Fr."},{"$f":"IF(ISERROR(VLOOKUP(Urlaubsplaner!EO1,Tabelle1[],1,FALSE)),TEXT(Urlaubsplaner!EO1,\"TTT.\"),VLOOKUP(Urlaubsplaner!EO1,Tabelle1[],2,FALSE))","v":"Sa."},{"$f":"IF(ISERROR(VLOOKUP(Urlaubsplaner!EP1,Tabelle1[],1,FALSE)),TEXT(Urlaubsplaner!EP1,\"TTT.\"),VLOOKUP(Urlaubsplaner!EP1,Tabelle1[],2,FALSE))","v":"Pfingsten"},{"$f":"IF(ISERROR(VLOOKUP(Urlaubsplaner!EQ1,Tabelle1[],1,FALSE)),TEXT(Urlaubsplaner!EQ1,\"TTT.\"),VLOOKUP(Urlaubsplaner!EQ1,Tabelle1[],2,FALSE))","v":"Pfingstmontag"},{"$f":"IF(ISERROR(VLOOKUP(Urlaubsplaner!ER1,Tabelle1[],1,FALSE)),TEXT(Urlaubsplaner!ER1,\"TTT.\"),VLOOKUP(Urlaubsplaner!ER1,Tabelle1[],2,FALSE))","v":"Di."},{"$f":"IF(ISERROR(VLOOKUP(Urlaubsplaner!ES1,Tabelle1[],1,FALSE)),TEXT(Urlaubsplaner!ES1,\"TTT.\"),VLOOKUP(Urlaubsplaner!ES1,Tabelle1[],2,FALSE))","v":"Mi."},{"$f":"IF(ISERROR(VLOOKUP(Urlaubsplaner!ET1,Tabelle1[],1,FALSE)),TEXT(Urlaubsplaner!ET1,\"TTT.\"),VLOOKUP(Urlaubsplaner!ET1,Tabelle1[],2,FALSE))","v":"Do."},{"$f":"IF(ISERROR(VLOOKUP(Urlaubsplaner!EU1,Tabelle1[],1,FALSE)),TEXT(Urlaubsplaner!EU1,\"TTT.\"),VLOOKUP(Urlaubsplaner!EU1,Tabelle1[],2,FALSE))","v":"Fr."},{"$f":"IF(ISERROR(VLOOKUP(Urlaubsplaner!EV1,Tabelle1[],1,FALSE)),TEXT(Urlaubsplaner!EV1,\"TTT.\"),VLOOKUP(Urlaubsplaner!EV1,Tabelle1[],2,FALSE))","v":"Sa."},{"$f":"IF(ISERROR(VLOOKUP(Urlaubsplaner!EW1,Tabelle1[],1,FALSE)),TEXT(Urlaubsplaner!EW1,\"TTT.\"),VLOOKUP(Urlaubsplaner!EW1,Tabelle1[],2,FALSE))","v":"So."},{"$f":"IF(ISERROR(VLOOKUP(Urlaubsplaner!EX1,Tabelle1[],1,FALSE)),TEXT(Urlaubsplaner!EX1,\"TTT.\"),VLOOKUP(Urlaubsplaner!EX1,Tabelle1[],2,FALSE))","v":"Mo."},{"$f":"IF(ISERROR(VLOOKUP(Urlaubsplaner!EY1,Tabelle1[],1,FALSE)),TEXT(Urlaubsplaner!EY1,\"TTT.\"),VLOOKUP(Urlaubsplaner!EY1,Tabelle1[],2,FALSE))","v":"Di."},{"$f":"IF(ISERROR(VLOOKUP(Urlaubsplaner!EZ1,Tabelle1[],1,FALSE)),TEXT(Urlaubsplaner!EZ1,\"TTT.\"),VLOOKUP(Urlaubsplaner!EZ1,Tabelle1[],2,FALSE))","v":"Mi."},{"$f":"IF(ISERROR(VLOOKUP(Urlaubsplaner!FA1,Tabelle1[],1,FALSE)),TEXT(Urlaubsplaner!FA1,\"TTT.\"),VLOOKUP(Urlaubsplaner!FA1,Tabelle1[],2,FALSE))","v":"Do."},{"$f":"IF(ISERROR(VLOOKUP(Urlaubsplaner!FB1,Tabelle1[],1,FALSE)),TEXT(Urlaubsplaner!FB1,\"TTT.\"),VLOOKUP(Urlaubsplaner!FB1,Tabelle1[],2,FALSE))","v":"Fr."},{"$f":"IF(ISERROR(VLOOKUP(Urlaubsplaner!FC1,Tabelle1[],1,FALSE)),TEXT(Urlaubsplaner!FC1,\"TTT.\"),VLOOKUP(Urlaubsplaner!FC1,Tabelle1[],2,FALSE))","v":"Sa."},{"$f":"IF(ISERROR(VLOOKUP(Urlaubsplaner!FD1,Tabelle1[],1,FALSE)),TEXT(Urlaubsplaner!FD1,\"TTT.\"),VLOOKUP(Urlaubsplaner!FD1,Tabelle1[],2,FALSE))","v":"So."},{"$f":"IF(ISERROR(VLOOKUP(Urlaubsplaner!FE1,Tabelle1[],1,FALSE)),TEXT(Urlaubsplaner!FE1,\"TTT.\"),VLOOKUP(Urlaubsplaner!FE1,Tabelle1[],2,FALSE))","v":"Mo."},{"$f":"IF(ISERROR(VLOOKUP(Urlaubsplaner!FF1,Tabelle1[],1,FALSE)),TEXT(Urlaubsplaner!FF1,\"TTT.\"),VLOOKUP(Urlaubsplaner!FF1,Tabelle1[],2,FALSE))","v":"Di."},{"$f":"IF(ISERROR(VLOOKUP(Urlaubsplaner!FG1,Tabelle1[],1,FALSE)),TEXT(Urlaubsplaner!FG1,\"TTT.\"),VLOOKUP(Urlaubsplaner!FG1,Tabelle1[],2,FALSE))","v":"Mi."},{"$f":"IF(ISERROR(VLOOKUP(Urlaubsplaner!FH1,Tabelle1[],1,FALSE)),TEXT(Urlaubsplaner!FH1,\"TTT.\"),VLOOKUP(Urlaubsplaner!FH1,Tabelle1[],2,FALSE))","v":"Do."},{"$f":"IF(ISERROR(VLOOKUP(Urlaubsplaner!FI1,Tabelle1[],1,FALSE)),TEXT(Urlaubsplaner!FI1,\"TTT.\"),VLOOKUP(Urlaubsplaner!FI1,Tabelle1[],2,FALSE))","v":"Fr."},{"$f":"IF(ISERROR(VLOOKUP(Urlaubsplaner!FJ1,Tabelle1[],1,FALSE)),TEXT(Urlaubsplaner!FJ1,\"TTT.\"),VLOOKUP(Urlaubsplaner!FJ1,Tabelle1[],2,FALSE))","v":"Sa."},{"$f":"IF(ISERROR(VLOOKUP(Urlaubsplaner!FK1,Tabelle1[],1,FALSE)),TEXT(Urlaubsplaner!FK1,\"TTT.\"),VLOOKUP(Urlaubsplaner!FK1,Tabelle1[],2,FALSE))","v":"So."},{"$f":"IF(ISERROR(VLOOKUP(Urlaubsplaner!FL1,Tabelle1[],1,FALSE)),TEXT(Urlaubsplaner!FL1,\"TTT.\"),VLOOKUP(Urlaubsplaner!FL1,Tabelle1[],2,FALSE))","v":"Mo."},{"$f":"IF(ISERROR(VLOOKUP(Urlaubsplaner!FM1,Tabelle1[],1,FALSE)),TEXT(Urlaubsplaner!FM1,\"TTT.\"),VLOOKUP(Urlaubsplaner!FM1,Tabelle1[],2,FALSE))","v":"Di."},{"$f":"IF(ISERROR(VLOOKUP(Urlaubsplaner!FN1,Tabelle1[],1,FALSE)),TEXT(Urlaubsplaner!FN1,\"TTT.\"),VLOOKUP(Urlaubsplaner!FN1,Tabelle1[],2,FALSE))","v":"Mi."},{"$f":"IF(ISERROR(VLOOKUP(Urlaubsplaner!FO1,Tabelle1[],1,FALSE)),TEXT(Urlaubsplaner!FO1,\"TTT.\"),VLOOKUP(Urlaubsplaner!FO1,Tabelle1[],2,FALSE))","v":"Do."},{"$f":"IF(ISERROR(VLOOKUP(Urlaubsplaner!FP1,Tabelle1[],1,FALSE)),TEXT(Urlaubsplaner!FP1,\"TTT.\"),VLOOKUP(Urlaubsplaner!FP1,Tabelle1[],2,FALSE))","v":"Fr."},{"$f":"IF(ISERROR(VLOOKUP(Urlaubsplaner!FQ1,Tabelle1[],1,FALSE)),TEXT(Urlaubsplaner!FQ1,\"TTT.\"),VLOOKUP(Urlaubsplaner!FQ1,Tabelle1[],2,FALSE))","v":"Sa."},{"$f":"IF(ISERROR(VLOOKUP(Urlaubsplaner!FR1,Tabelle1[],1,FALSE)),TEXT(Urlaubsplaner!FR1,\"TTT.\"),VLOOKUP(Urlaubsplaner!FR1,Tabelle1[],2,FALSE))","v":"So."},{"$f":"IF(ISERROR(VLOOKUP(Urlaubsplaner!FS1,Tabelle1[],1,FALSE)),TEXT(Urlaubsplaner!FS1,\"TTT.\"),VLOOKUP(Urlaubsplaner!FS1,Tabelle1[],2,FALSE))","v":"Mo."},{"$f":"IF(ISERROR(VLOOKUP(Urlaubsplaner!FT1,Tabelle1[],1,FALSE)),TEXT(Urlaubsplaner!FT1,\"TTT.\"),VLOOKUP(Urlaubsplaner!FT1,Tabelle1[],2,FALSE))","v":"Di."},{"$f":"IF(ISERROR(VLOOKUP(Urlaubsplaner!FU1,Tabelle1[],1,FALSE)),TEXT(Urlaubsplaner!FU1,\"TTT.\"),VLOOKUP(Urlaubsplaner!FU1,Tabelle1[],2,FALSE))","v":"Mi."},{"$f":"IF(ISERROR(VLOOKUP(Urlaubsplaner!FV1,Tabelle1[],1,FALSE)),TEXT(Urlaubsplaner!FV1,\"TTT.\"),VLOOKUP(Urlaubsplaner!FV1,Tabelle1[],2,FALSE))","v":"Do."},{"$f":"IF(ISERROR(VLOOKUP(Urlaubsplaner!FW1,Tabelle1[],1,FALSE)),TEXT(Urlaubsplaner!FW1,\"TTT.\"),VLOOKUP(Urlaubsplaner!FW1,Tabelle1[],2,FALSE))","v":"Fr."},{"$f":"IF(ISERROR(VLOOKUP(Urlaubsplaner!FX1,Tabelle1[],1,FALSE)),TEXT(Urlaubsplaner!FX1,\"TTT.\"),VLOOKUP(Urlaubsplaner!FX1,Tabelle1[],2,FALSE))","v":"Sa."},{"$f":"IF(ISERROR(VLOOKUP(Urlaubsplaner!FY1,Tabelle1[],1,FALSE)),TEXT(Urlaubsplaner!FY1,\"TTT.\"),VLOOKUP(Urlaubsplaner!FY1,Tabelle1[],2,FALSE))","v":"So."},{"$f":"IF(ISERROR(VLOOKUP(Urlaubsplaner!FZ1,Tabelle1[],1,FALSE)),TEXT(Urlaubsplaner!FZ1,\"TTT.\"),VLOOKUP(Urlaubsplaner!FZ1,Tabelle1[],2,FALSE))","v":"Mo."},{"$f":"IF(ISERROR(VLOOKUP(Urlaubsplaner!GA1,Tabelle1[],1,FALSE)),TEXT(Urlaubsplaner!GA1,\"TTT.\"),VLOOKUP(Urlaubsplaner!GA1,Tabelle1[],2,FALSE))","v":"Di."},{"$f":"IF(ISERROR(VLOOKUP(Urlaubsplaner!GB1,Tabelle1[],1,FALSE)),TEXT(Urlaubsplaner!GB1,\"TTT.\"),VLOOKUP(Urlaubsplaner!GB1,Tabelle1[],2,FALSE))","v":"Mi."},{"$f":"IF(ISERROR(VLOOKUP(Urlaubsplaner!GC1,Tabelle1[],1,FALSE)),TEXT(Urlaubsplaner!GC1,\"TTT.\"),VLOOKUP(Urlaubsplaner!GC1,Tabelle1[],2,FALSE))","v":"Do."},{"$f":"IF(ISERROR(VLOOKUP(Urlaubsplaner!GD1,Tabelle1[],1,FALSE)),TEXT(Urlaubsplaner!GD1,\"TTT.\"),VLOOKUP(Urlaubsplaner!GD1,Tabelle1[],2,FALSE))","v":"Fr."},{"$f":"IF(ISERROR(VLOOKUP(Urlaubsplaner!GE1,Tabelle1[],1,FALSE)),TEXT(Urlaubsplaner!GE1,\"TTT.\"),VLOOKUP(Urlaubsplaner!GE1,Tabelle1[],2,FALSE))","v":"Sa."},{"$f":"IF(ISERROR(VLOOKUP(Urlaubsplaner!GF1,Tabelle1[],1,FALSE)),TEXT(Urlaubsplaner!GF1,\"TTT.\"),VLOOKUP(Urlaubsplaner!GF1,Tabelle1[],2,FALSE))","v":"So."},{"$f":"IF(ISERROR(VLOOKUP(Urlaubsplaner!GG1,Tabelle1[],1,FALSE)),TEXT(Urlaubsplaner!GG1,\"TTT.\"),VLOOKUP(Urlaubsplaner!GG1,Tabelle1[],2,FALSE))","v":"Mo."},{"$f":"IF(ISERROR(VLOOKUP(Urlaubsplaner!GH1,Tabelle1[],1,FALSE)),TEXT(Urlaubsplaner!GH1,\"TTT.\"),VLOOKUP(Urlaubsplaner!GH1,Tabelle1[],2,FALSE))","v":"Di."},{"$f":"IF(ISERROR(VLOOKUP(Urlaubsplaner!GI1,Tabelle1[],1,FALSE)),TEXT(Urlaubsplaner!GI1,\"TTT.\"),VLOOKUP(Urlaubsplaner!GI1,Tabelle1[],2,FALSE))","v":"Mi."},{"$f":"IF(ISERROR(VLOOKUP(Urlaubsplaner!GJ1,Tabelle1[],1,FALSE)),TEXT(Urlaubsplaner!GJ1,\"TTT.\"),VLOOKUP(Urlaubsplaner!GJ1,Tabelle1[],2,FALSE))","v":"Do."},{"$f":"IF(ISERROR(VLOOKUP(Urlaubsplaner!GK1,Tabelle1[],1,FALSE)),TEXT(Urlaubsplaner!GK1,\"TTT.\"),VLOOKUP(Urlaubsplaner!GK1,Tabelle1[],2,FALSE))","v":"Fr."},{"$f":"IF(ISERROR(VLOOKUP(Urlaubsplaner!GL1,Tabelle1[],1,FALSE)),TEXT(Urlaubsplaner!GL1,\"TTT.\"),VLOOKUP(Urlaubsplaner!GL1,Tabelle1[],2,FALSE))","v":"Sa."},{"$f":"IF(ISERROR(VLOOKUP(Urlaubsplaner!GM1,Tabelle1[],1,FALSE)),TEXT(Urlaubsplaner!GM1,\"TTT.\"),VLOOKUP(Urlaubsplaner!GM1,Tabelle1[],2,FALSE))","v":"So."},{"$f":"IF(ISERROR(VLOOKUP(Urlaubsplaner!GN1,Tabelle1[],1,FALSE)),TEXT(Urlaubsplaner!GN1,\"TTT.\"),VLOOKUP(Urlaubsplaner!GN1,Tabelle1[],2,FALSE))","v":"Mo."},{"$f":"IF(ISERROR(VLOOKUP(Urlaubsplaner!GO1,Tabelle1[],1,FALSE)),TEXT(Urlaubsplaner!GO1,\"TTT.\"),VLOOKUP(Urlaubsplaner!GO1,Tabelle1[],2,FALSE))","v":"Di."},{"$f":"IF(ISERROR(VLOOKUP(Urlaubsplaner!GP1,Tabelle1[],1,FALSE)),TEXT(Urlaubsplaner!GP1,\"TTT.\"),VLOOKUP(Urlaubsplaner!GP1,Tabelle1[],2,FALSE))","v":"Mi."},{"$f":"IF(ISERROR(VLOOKUP(Urlaubsplaner!GQ1,Tabelle1[],1,FALSE)),TEXT(Urlaubsplaner!GQ1,\"TTT.\"),VLOOKUP(Urlaubsplaner!GQ1,Tabelle1[],2,FALSE))","v":"Do."},{"$f":"IF(ISERROR(VLOOKUP(Urlaubsplaner!GR1,Tabelle1[],1,FALSE)),TEXT(Urlaubsplaner!GR1,\"TTT.\"),VLOOKUP(Urlaubsplaner!GR1,Tabelle1[],2,FALSE))","v":"Fr."},{"$f":"IF(ISERROR(VLOOKUP(Urlaubsplaner!GS1,Tabelle1[],1,FALSE)),TEXT(Urlaubsplaner!GS1,\"TTT.\"),VLOOKUP(Urlaubsplaner!GS1,Tabelle1[],2,FALSE))","v":"Sa."},{"$f":"IF(ISERROR(VLOOKUP(Urlaubsplaner!GT1,Tabelle1[],1,FALSE)),TEXT(Urlaubsplaner!GT1,\"TTT.\"),VLOOKUP(Urlaubsplaner!GT1,Tabelle1[],2,FALSE))","v":"So."},{"$f":"IF(ISERROR(VLOOKUP(Urlaubsplaner!GU1,Tabelle1[],1,FALSE)),TEXT(Urlaubsplaner!GU1,\"TTT.\"),VLOOKUP(Urlaubsplaner!GU1,Tabelle1[],2,FALSE))","v":"Mo."},{"$f":"IF(ISERROR(VLOOKUP(Urlaubsplaner!GV1,Tabelle1[],1,FALSE)),TEXT(Urlaubsplaner!GV1,\"TTT.\"),VLOOKUP(Urlaubsplaner!GV1,Tabelle1[],2,FALSE))","v":"Di."},{"$f":"IF(ISERROR(VLOOKUP(Urlaubsplaner!GW1,Tabelle1[],1,FALSE)),TEXT(Urlaubsplaner!GW1,\"TTT.\"),VLOOKUP(Urlaubsplaner!GW1,Tabelle1[],2,FALSE))","v":"Mi."},{"$f":"IF(ISERROR(VLOOKUP(Urlaubsplaner!GX1,Tabelle1[],1,FALSE)),TEXT(Urlaubsplaner!GX1,\"TTT.\"),VLOOKUP(Urlaubsplaner!GX1,Tabelle1[],2,FALSE))","v":"Do."},{"$f":"IF(ISERROR(VLOOKUP(Urlaubsplaner!GY1,Tabelle1[],1,FALSE)),TEXT(Urlaubsplaner!GY1,\"TTT.\"),VLOOKUP(Urlaubsplaner!GY1,Tabelle1[],2,FALSE))","v":"Fr."},{"$f":"IF(ISERROR(VLOOKUP(Urlaubsplaner!GZ1,Tabelle1[],1,FALSE)),TEXT(Urlaubsplaner!GZ1,\"TTT.\"),VLOOKUP(Urlaubsplaner!GZ1,Tabelle1[],2,FALSE))","v":"Sa."},{"$f":"IF(ISERROR(VLOOKUP(Urlaubsplaner!HA1,Tabelle1[],1,FALSE)),TEXT(Urlaubsplaner!HA1,\"TTT.\"),VLOOKUP(Urlaubsplaner!HA1,Tabelle1[],2,FALSE))","v":"So."},{"$f":"IF(ISERROR(VLOOKUP(Urlaubsplaner!HB1,Tabelle1[],1,FALSE)),TEXT(Urlaubsplaner!HB1,\"TTT.\"),VLOOKUP(Urlaubsplaner!HB1,Tabelle1[],2,FALSE))","v":"Mo."},{"$f":"IF(ISERROR(VLOOKUP(Urlaubsplaner!HC1,Tabelle1[],1,FALSE)),TEXT(Urlaubsplaner!HC1,\"TTT.\"),VLOOKUP(Urlaubsplaner!HC1,Tabelle1[],2,FALSE))","v":"Di."},{"$f":"IF(ISERROR(VLOOKUP(Urlaubsplaner!HD1,Tabelle1[],1,FALSE)),TEXT(Urlaubsplaner!HD1,\"TTT.\"),VLOOKUP(Urlaubsplaner!HD1,Tabelle1[],2,FALSE))","v":"Mi."},{"$f":"IF(ISERROR(VLOOKUP(Urlaubsplaner!HE1,Tabelle1[],1,FALSE)),TEXT(Urlaubsplaner!HE1,\"TTT.\"),VLOOKUP(Urlaubsplaner!HE1,Tabelle1[],2,FALSE))","v":"Do."},{"$f":"IF(ISERROR(VLOOKUP(Urlaubsplaner!HF1,Tabelle1[],1,FALSE)),TEXT(Urlaubsplaner!HF1,\"TTT.\"),VLOOKUP(Urlaubsplaner!HF1,Tabelle1[],2,FALSE))","v":"Fr."},{"$f":"IF(ISERROR(VLOOKUP(Urlaubsplaner!HG1,Tabelle1[],1,FALSE)),TEXT(Urlaubsplaner!HG1,\"TTT.\"),VLOOKUP(Urlaubsplaner!HG1,Tabelle1[],2,FALSE))","v":"Sa."},{"$f":"IF(ISERROR(VLOOKUP(Urlaubsplaner!HH1,Tabelle1[],1,FALSE)),TEXT(Urlaubsplaner!HH1,\"TTT.\"),VLOOKUP(Urlaubsplaner!HH1,Tabelle1[],2,FALSE))","v":"So."},{"$f":"IF(ISERROR(VLOOKUP(Urlaubsplaner!HI1,Tabelle1[],1,FALSE)),TEXT(Urlaubsplaner!HI1,\"TTT.\"),VLOOKUP(Urlaubsplaner!HI1,Tabelle1[],2,FALSE))","v":"Mo."},{"$f":"IF(ISERROR(VLOOKUP(Urlaubsplaner!HJ1,Tabelle1[],1,FALSE)),TEXT(Urlaubsplaner!HJ1,\"TTT.\"),VLOOKUP(Urlaubsplaner!HJ1,Tabelle1[],2,FALSE))","v":"Di."},{"$f":"IF(ISERROR(VLOOKUP(Urlaubsplaner!HK1,Tabelle1[],1,FALSE)),TEXT(Urlaubsplaner!HK1,\"TTT.\"),VLOOKUP(Urlaubsplaner!HK1,Tabelle1[],2,FALSE))","v":"Mi."},{"$f":"IF(ISERROR(VLOOKUP(Urlaubsplaner!HL1,Tabelle1[],1,FALSE)),TEXT(Urlaubsplaner!HL1,\"TTT.\"),VLOOKUP(Urlaubsplaner!HL1,Tabelle1[],2,FALSE))","v":"Do."},{"$f":"IF(ISERROR(VLOOKUP(Urlaubsplaner!HM1,Tabelle1[],1,FALSE)),TEXT(Urlaubsplaner!HM1,\"TTT.\"),VLOOKUP(Urlaubsplaner!HM1,Tabelle1[],2,FALSE))","v":"Fr."},{"$f":"IF(ISERROR(VLOOKUP(Urlaubsplaner!HN1,Tabelle1[],1,FALSE)),TEXT(Urlaubsplaner!HN1,\"TTT.\"),VLOOKUP(Urlaubsplaner!HN1,Tabelle1[],2,FALSE))","v":"Sa."},{"$f":"IF(ISERROR(VLOOKUP(Urlaubsplaner!HO1,Tabelle1[],1,FALSE)),TEXT(Urlaubsplaner!HO1,\"TTT.\"),VLOOKUP(Urlaubsplaner!HO1,Tabelle1[],2,FALSE))","v":"So."},{"$f":"IF(ISERROR(VLOOKUP(Urlaubsplaner!HP1,Tabelle1[],1,FALSE)),TEXT(Urlaubsplaner!HP1,\"TTT.\"),VLOOKUP(Urlaubsplaner!HP1,Tabelle1[],2,FALSE))","v":"Mo."},{"$f":"IF(ISERROR(VLOOKUP(Urlaubsplaner!HQ1,Tabelle1[],1,FALSE)),TEXT(Urlaubsplaner!HQ1,\"TTT.\"),VLOOKUP(Urlaubsplaner!HQ1,Tabelle1[],2,FALSE))","v":"Di."},{"$f":"IF(ISERROR(VLOOKUP(Urlaubsplaner!HR1,Tabelle1[],1,FALSE)),TEXT(Urlaubsplaner!HR1,\"TTT.\"),VLOOKUP(Urlaubsplaner!HR1,Tabelle1[],2,FALSE))","v":"Mi."},{"$f":"IF(ISERROR(VLOOKUP(Urlaubsplaner!HS1,Tabelle1[],1,FALSE)),TEXT(Urlaubsplaner!HS1,\"TTT.\"),VLOOKUP(Urlaubsplaner!HS1,Tabelle1[],2,FALSE))","v":"Do."},{"$f":"IF(ISERROR(VLOOKUP(Urlaubsplaner!HT1,Tabelle1[],1,FALSE)),TEXT(Urlaubsplaner!HT1,\"TTT.\"),VLOOKUP(Urlaubsplaner!HT1,Tabelle1[],2,FALSE))","v":"Fr."},{"$f":"IF(ISERROR(VLOOKUP(Urlaubsplaner!HU1,Tabelle1[],1,FALSE)),TEXT(Urlaubsplaner!HU1,\"TTT.\"),VLOOKUP(Urlaubsplaner!HU1,Tabelle1[],2,FALSE))","v":"Sa."},{"$f":"IF(ISERROR(VLOOKUP(Urlaubsplaner!HV1,Tabelle1[],1,FALSE)),TEXT(Urlaubsplaner!HV1,\"TTT.\"),VLOOKUP(Urlaubsplaner!HV1,Tabelle1[],2,FALSE))","v":"So."},{"$f":"IF(ISERROR(VLOOKUP(Urlaubsplaner!HW1,Tabelle1[],1,FALSE)),TEXT(Urlaubsplaner!HW1,\"TTT.\"),VLOOKUP(Urlaubsplaner!HW1,Tabelle1[],2,FALSE))","v":"Mo."},{"$f":"IF(ISERROR(VLOOKUP(Urlaubsplaner!HX1,Tabelle1[],1,FALSE)),TEXT(Urlaubsplaner!HX1,\"TTT.\"),VLOOKUP(Urlaubsplaner!HX1,Tabelle1[],2,FALSE))","v":"Di."},{"$f":"IF(ISERROR(VLOOKUP(Urlaubsplaner!HY1,Tabelle1[],1,FALSE)),TEXT(Urlaubsplaner!HY1,\"TTT.\"),VLOOKUP(Urlaubsplaner!HY1,Tabelle1[],2,FALSE))","v":"Mi."},{"$f":"IF(ISERROR(VLOOKUP(Urlaubsplaner!HZ1,Tabelle1[],1,FALSE)),TEXT(Urlaubsplaner!HZ1,\"TTT.\"),VLOOKUP(Urlaubsplaner!HZ1,Tabelle1[],2,FALSE))","v":"Do."},{"$f":"IF(ISERROR(VLOOKUP(Urlaubsplaner!IA1,Tabelle1[],1,FALSE)),TEXT(Urlaubsplaner!IA1,\"TTT.\"),VLOOKUP(Urlaubsplaner!IA1,Tabelle1[],2,FALSE))","v":"Fr."},{"$f":"IF(ISERROR(VLOOKUP(Urlaubsplaner!IB1,Tabelle1[],1,FALSE)),TEXT(Urlaubsplaner!IB1,\"TTT.\"),VLOOKUP(Urlaubsplaner!IB1,Tabelle1[],2,FALSE))","v":"Sa."},{"$f":"IF(ISERROR(VLOOKUP(Urlaubsplaner!IC1,Tabelle1[],1,FALSE)),TEXT(Urlaubsplaner!IC1,\"TTT.\"),VLOOKUP(Urlaubsplaner!IC1,Tabelle1[],2,FALSE))","v":"So."},{"$f":"IF(ISERROR(VLOOKUP(Urlaubsplaner!ID1,Tabelle1[],1,FALSE)),TEXT(Urlaubsplaner!ID1,\"TTT.\"),VLOOKUP(Urlaubsplaner!ID1,Tabelle1[],2,FALSE))","v":"Mo."},{"$f":"IF(ISERROR(VLOOKUP(Urlaubsplaner!IE1,Tabelle1[],1,FALSE)),TEXT(Urlaubsplaner!IE1,\"TTT.\"),VLOOKUP(Urlaubsplaner!IE1,Tabelle1[],2,FALSE))","v":"Di."},{"$f":"IF(ISERROR(VLOOKUP(Urlaubsplaner!IF1,Tabelle1[],1,FALSE)),TEXT(Urlaubsplaner!IF1,\"TTT.\"),VLOOKUP(Urlaubsplaner!IF1,Tabelle1[],2,FALSE))","v":"Mi."},{"$f":"IF(ISERROR(VLOOKUP(Urlaubsplaner!IG1,Tabelle1[],1,FALSE)),TEXT(Urlaubsplaner!IG1,\"TTT.\"),VLOOKUP(Urlaubsplaner!IG1,Tabelle1[],2,FALSE))","v":"Do."},{"$f":"IF(ISERROR(VLOOKUP(Urlaubsplaner!IH1,Tabelle1[],1,FALSE)),TEXT(Urlaubsplaner!IH1,\"TTT.\"),VLOOKUP(Urlaubsplaner!IH1,Tabelle1[],2,FALSE))","v":"Fr."},{"$f":"IF(ISERROR(VLOOKUP(Urlaubsplaner!II1,Tabelle1[],1,FALSE)),TEXT(Urlaubsplaner!II1,\"TTT.\"),VLOOKUP(Urlaubsplaner!II1,Tabelle1[],2,FALSE))","v":"Sa."},{"$f":"IF(ISERROR(VLOOKUP(Urlaubsplaner!IJ1,Tabelle1[],1,FALSE)),TEXT(Urlaubsplaner!IJ1,\"TTT.\"),VLOOKUP(Urlaubsplaner!IJ1,Tabelle1[],2,FALSE))","v":"So."},{"$f":"IF(ISERROR(VLOOKUP(Urlaubsplaner!IK1,Tabelle1[],1,FALSE)),TEXT(Urlaubsplaner!IK1,\"TTT.\"),VLOOKUP(Urlaubsplaner!IK1,Tabelle1[],2,FALSE))","v":"Mo."},{"$f":"IF(ISERROR(VLOOKUP(Urlaubsplaner!IL1,Tabelle1[],1,FALSE)),TEXT(Urlaubsplaner!IL1,\"TTT.\"),VLOOKUP(Urlaubsplaner!IL1,Tabelle1[],2,FALSE))","v":"Di."},{"$f":"IF(ISERROR(VLOOKUP(Urlaubsplaner!IM1,Tabelle1[],1,FALSE)),TEXT(Urlaubsplaner!IM1,\"TTT.\"),VLOOKUP(Urlaubsplaner!IM1,Tabelle1[],2,FALSE))","v":"Mi."},{"$f":"IF(ISERROR(VLOOKUP(Urlaubsplaner!IN1,Tabelle1[],1,FALSE)),TEXT(Urlaubsplaner!IN1,\"TTT.\"),VLOOKUP(Urlaubsplaner!IN1,Tabelle1[],2,FALSE))","v":"Do."},{"$f":"IF(ISERROR(VLOOKUP(Urlaubsplaner!IO1,Tabelle1[],1,FALSE)),TEXT(Urlaubsplaner!IO1,\"TTT.\"),VLOOKUP(Urlaubsplaner!IO1,Tabelle1[],2,FALSE))","v":"Fr."},{"$f":"IF(ISERROR(VLOOKUP(Urlaubsplaner!IP1,Tabelle1[],1,FALSE)),TEXT(Urlaubsplaner!IP1,\"TTT.\"),VLOOKUP(Urlaubsplaner!IP1,Tabelle1[],2,FALSE))","v":"Sa."},{"$f":"IF(ISERROR(VLOOKUP(Urlaubsplaner!IQ1,Tabelle1[],1,FALSE)),TEXT(Urlaubsplaner!IQ1,\"TTT.\"),VLOOKUP(Urlaubsplaner!IQ1,Tabelle1[],2,FALSE))","v":"So."},{"$f":"IF(ISERROR(VLOOKUP(Urlaubsplaner!IR1,Tabelle1[],1,FALSE)),TEXT(Urlaubsplaner!IR1,\"TTT.\"),VLOOKUP(Urlaubsplaner!IR1,Tabelle1[],2,FALSE))","v":"Mo."},{"$f":"IF(ISERROR(VLOOKUP(Urlaubsplaner!IS1,Tabelle1[],1,FALSE)),TEXT(Urlaubsplaner!IS1,\"TTT.\"),VLOOKUP(Urlaubsplaner!IS1,Tabelle1[],2,FALSE))","v":"Di."},{"$f":"IF(ISERROR(VLOOKUP(Urlaubsplaner!IT1,Tabelle1[],1,FALSE)),TEXT(Urlaubsplaner!IT1,\"TTT.\"),VLOOKUP(Urlaubsplaner!IT1,Tabelle1[],2,FALSE))","v":"Mi."},{"$f":"IF(ISERROR(VLOOKUP(Urlaubsplaner!IU1,Tabelle1[],1,FALSE)),TEXT(Urlaubsplaner!IU1,\"TTT.\"),VLOOKUP(Urlaubsplaner!IU1,Tabelle1[],2,FALSE))","v":"Do."},{"$f":"IF(ISERROR(VLOOKUP(Urlaubsplaner!IV1,Tabelle1[],1,FALSE)),TEXT(Urlaubsplaner!IV1,\"TTT.\"),VLOOKUP(Urlaubsplaner!IV1,Tabelle1[],2,FALSE))","v":"Fr."},{"$f":"IF(ISERROR(VLOOKUP(Urlaubsplaner!IW1,Tabelle1[],1,FALSE)),TEXT(Urlaubsplaner!IW1,\"TTT.\"),VLOOKUP(Urlaubsplaner!IW1,Tabelle1[],2,FALSE))","v":"Sa."},{"$f":"IF(ISERROR(VLOOKUP(Urlaubsplaner!IX1,Tabelle1[],1,FALSE)),TEXT(Urlaubsplaner!IX1,\"TTT.\"),VLOOKUP(Urlaubsplaner!IX1,Tabelle1[],2,FALSE))","v":"So."},{"$f":"IF(ISERROR(VLOOKUP(Urlaubsplaner!IY1,Tabelle1[],1,FALSE)),TEXT(Urlaubsplaner!IY1,\"TTT.\"),VLOOKUP(Urlaubsplaner!IY1,Tabelle1[],2,FALSE))","v":"Mo."},{"$f":"IF(ISERROR(VLOOKUP(Urlaubsplaner!IZ1,Tabelle1[],1,FALSE)),TEXT(Urlaubsplaner!IZ1,\"TTT.\"),VLOOKUP(Urlaubsplaner!IZ1,Tabelle1[],2,FALSE))","v":"Di."},{"$f":"IF(ISERROR(VLOOKUP(Urlaubsplaner!JA1,Tabelle1[],1,FALSE)),TEXT(Urlaubsplaner!JA1,\"TTT.\"),VLOOKUP(Urlaubsplaner!JA1,Tabelle1[],2,FALSE))","v":"Mi."},{"$f":"IF(ISERROR(VLOOKUP(Urlaubsplaner!JB1,Tabelle1[],1,FALSE)),TEXT(Urlaubsplaner!JB1,\"TTT.\"),VLOOKUP(Urlaubsplaner!JB1,Tabelle1[],2,FALSE))","v":"Do."},{"$f":"IF(ISERROR(VLOOKUP(Urlaubsplaner!JC1,Tabelle1[],1,FALSE)),TEXT(Urlaubsplaner!JC1,\"TTT.\"),VLOOKUP(Urlaubsplaner!JC1,Tabelle1[],2,FALSE))","v":"Fr."},{"$f":"IF(ISERROR(VLOOKUP(Urlaubsplaner!JD1,Tabelle1[],1,FALSE)),TEXT(Urlaubsplaner!JD1,\"TTT.\"),VLOOKUP(Urlaubsplaner!JD1,Tabelle1[],2,FALSE))","v":"Sa."},{"$f":"IF(ISERROR(VLOOKUP(Urlaubsplaner!JE1,Tabelle1[],1,FALSE)),TEXT(Urlaubsplaner!JE1,\"TTT.\"),VLOOKUP(Urlaubsplaner!JE1,Tabelle1[],2,FALSE))","v":"So."},{"$f":"IF(ISERROR(VLOOKUP(Urlaubsplaner!JF1,Tabelle1[],1,FALSE)),TEXT(Urlaubsplaner!JF1,\"TTT.\"),VLOOKUP(Urlaubsplaner!JF1,Tabelle1[],2,FALSE))","v":"Mo."},{"$f":"IF(ISERROR(VLOOKUP(Urlaubsplaner!JG1,Tabelle1[],1,FALSE)),TEXT(Urlaubsplaner!JG1,\"TTT.\"),VLOOKUP(Urlaubsplaner!JG1,Tabelle1[],2,FALSE))","v":"Di."},{"$f":"IF(ISERROR(VLOOKUP(Urlaubsplaner!JH1,Tabelle1[],1,FALSE)),TEXT(Urlaubsplaner!JH1,\"TTT.\"),VLOOKUP(Urlaubsplaner!JH1,Tabelle1[],2,FALSE))","v":"Mi."},{"$f":"IF(ISERROR(VLOOKUP(Urlaubsplaner!JI1,Tabelle1[],1,FALSE)),TEXT(Urlaubsplaner!JI1,\"TTT.\"),VLOOKUP(Urlaubsplaner!JI1,Tabelle1[],2,FALSE))","v":"Do."},{"$f":"IF(ISERROR(VLOOKUP(Urlaubsplaner!JJ1,Tabelle1[],1,FALSE)),TEXT(Urlaubsplaner!JJ1,\"TTT.\"),VLOOKUP(Urlaubsplaner!JJ1,Tabelle1[],2,FALSE))","v":"Fr."},{"$f":"IF(ISERROR(VLOOKUP(Urlaubsplaner!JK1,Tabelle1[],1,FALSE)),TEXT(Urlaubsplaner!JK1,\"TTT.\"),VLOOKUP(Urlaubsplaner!JK1,Tabelle1[],2,FALSE))","v":"Sa."},{"$f":"IF(ISERROR(VLOOKUP(Urlaubsplaner!JL1,Tabelle1[],1,FALSE)),TEXT(Urlaubsplaner!JL1,\"TTT.\"),VLOOKUP(Urlaubsplaner!JL1,Tabelle1[],2,FALSE))","v":"So."},{"$f":"IF(ISERROR(VLOOKUP(Urlaubsplaner!JM1,Tabelle1[],1,FALSE)),TEXT(Urlaubsplaner!JM1,\"TTT.\"),VLOOKUP(Urlaubsplaner!JM1,Tabelle1[],2,FALSE))","v":"Mo."},{"$f":"IF(ISERROR(VLOOKUP(Urlaubsplaner!JN1,Tabelle1[],1,FALSE)),TEXT(Urlaubsplaner!JN1,\"TTT.\"),VLOOKUP(Urlaubsplaner!JN1,Tabelle1[],2,FALSE))","v":"Di."},{"$f":"IF(ISERROR(VLOOKUP(Urlaubsplaner!JO1,Tabelle1[],1,FALSE)),TEXT(Urlaubsplaner!JO1,\"TTT.\"),VLOOKUP(Urlaubsplaner!JO1,Tabelle1[],2,FALSE))","v":"Mi."},{"$f":"IF(ISERROR(VLOOKUP(Urlaubsplaner!JP1,Tabelle1[],1,FALSE)),TEXT(Urlaubsplaner!JP1,\"TTT.\"),VLOOKUP(Urlaubsplaner!JP1,Tabelle1[],2,FALSE))","v":"Do."},{"$f":"IF(ISERROR(VLOOKUP(Urlaubsplaner!JQ1,Tabelle1[],1,FALSE)),TEXT(Urlaubsplaner!JQ1,\"TTT.\"),VLOOKUP(Urlaubsplaner!JQ1,Tabelle1[],2,FALSE))","v":"Fr."},{"$f":"IF(ISERROR(VLOOKUP(Urlaubsplaner!JR1,Tabelle1[],1,FALSE)),TEXT(Urlaubsplaner!JR1,\"TTT.\"),VLOOKUP(Urlaubsplaner!JR1,Tabelle1[],2,FALSE))","v":"Tag der Einheit"},{"$f":"IF(ISERROR(VLOOKUP(Urlaubsplaner!JS1,Tabelle1[],1,FALSE)),TEXT(Urlaubsplaner!JS1,\"TTT.\"),VLOOKUP(Urlaubsplaner!JS1,Tabelle1[],2,FALSE))","v":"So."},{"$f":"IF(ISERROR(VLOOKUP(Urlaubsplaner!JT1,Tabelle1[],1,FALSE)),TEXT(Urlaubsplaner!JT1,\"TTT.\"),VLOOKUP(Urlaubsplaner!JT1,Tabelle1[],2,FALSE))","v":"Mo."},{"$f":"IF(ISERROR(VLOOKUP(Urlaubsplaner!JU1,Tabelle1[],1,FALSE)),TEXT(Urlaubsplaner!JU1,\"TTT.\"),VLOOKUP(Urlaubsplaner!JU1,Tabelle1[],2,FALSE))","v":"Di."},{"$f":"IF(ISERROR(VLOOKUP(Urlaubsplaner!JV1,Tabelle1[],1,FALSE)),TEXT(Urlaubsplaner!JV1,\"TTT.\"),VLOOKUP(Urlaubsplaner!JV1,Tabelle1[],2,FALSE))","v":"Mi."},{"$f":"IF(ISERROR(VLOOKUP(Urlaubsplaner!JW1,Tabelle1[],1,FALSE)),TEXT(Urlaubsplaner!JW1,\"TTT.\"),VLOOKUP(Urlaubsplaner!JW1,Tabelle1[],2,FALSE))","v":"Do."},{"$f":"IF(ISERROR(VLOOKUP(Urlaubsplaner!JX1,Tabelle1[],1,FALSE)),TEXT(Urlaubsplaner!JX1,\"TTT.\"),VLOOKUP(Urlaubsplaner!JX1,Tabelle1[],2,FALSE))","v":"Fr."},{"$f":"IF(ISERROR(VLOOKUP(Urlaubsplaner!JY1,Tabelle1[],1,FALSE)),TEXT(Urlaubsplaner!JY1,\"TTT.\"),VLOOKUP(Urlaubsplaner!JY1,Tabelle1[],2,FALSE))","v":"Sa."},{"$f":"IF(ISERROR(VLOOKUP(Urlaubsplaner!JZ1,Tabelle1[],1,FALSE)),TEXT(Urlaubsplaner!JZ1,\"TTT.\"),VLOOKUP(Urlaubsplaner!JZ1,Tabelle1[],2,FALSE))","v":"So."},{"$f":"IF(ISERROR(VLOOKUP(Urlaubsplaner!KA1,Tabelle1[],1,FALSE)),TEXT(Urlaubsplaner!KA1,\"TTT.\"),VLOOKUP(Urlaubsplaner!KA1,Tabelle1[],2,FALSE))","v":"Mo."},{"$f":"IF(ISERROR(VLOOKUP(Urlaubsplaner!KB1,Tabelle1[],1,FALSE)),TEXT(Urlaubsplaner!KB1,\"TTT.\"),VLOOKUP(Urlaubsplaner!KB1,Tabelle1[],2,FALSE))","v":"Di."},{"$f":"IF(ISERROR(VLOOKUP(Urlaubsplaner!KC1,Tabelle1[],1,FALSE)),TEXT(Urlaubsplaner!KC1,\"TTT.\"),VLOOKUP(Urlaubsplaner!KC1,Tabelle1[],2,FALSE))","v":"Mi."},{"$f":"IF(ISERROR(VLOOKUP(Urlaubsplaner!KD1,Tabelle1[],1,FALSE)),TEXT(Urlaubsplaner!KD1,\"TTT.\"),VLOOKUP(Urlaubsplaner!KD1,Tabelle1[],2,FALSE))","v":"Do."},{"$f":"IF(ISERROR(VLOOKUP(Urlaubsplaner!KE1,Tabelle1[],1,FALSE)),TEXT(Urlaubsplaner!KE1,\"TTT.\"),VLOOKUP(Urlaubsplaner!KE1,Tabelle1[],2,FALSE))","v":"Fr."},{"$f":"IF(ISERROR(VLOOKUP(Urlaubsplaner!KF1,Tabelle1[],1,FALSE)),TEXT(Urlaubsplaner!KF1,\"TTT.\"),VLOOKUP(Urlaubsplaner!KF1,Tabelle1[],2,FALSE))","v":"Sa."},{"$f":"IF(ISERROR(VLOOKUP(Urlaubsplaner!KG1,Tabelle1[],1,FALSE)),TEXT(Urlaubsplaner!KG1,\"TTT.\"),VLOOKUP(Urlaubsplaner!KG1,Tabelle1[],2,FALSE))","v":"So."},{"$f":"IF(ISERROR(VLOOKUP(Urlaubsplaner!KH1,Tabelle1[],1,FALSE)),TEXT(Urlaubsplaner!KH1,\"TTT.\"),VLOOKUP(Urlaubsplaner!KH1,Tabelle1[],2,FALSE))","v":"Mo."},{"$f":"IF(ISERROR(VLOOKUP(Urlaubsplaner!KI1,Tabelle1[],1,FALSE)),TEXT(Urlaubsplaner!KI1,\"TTT.\"),VLOOKUP(Urlaubsplaner!KI1,Tabelle1[],2,FALSE))","v":"Di."},{"$f":"IF(ISERROR(VLOOKUP(Urlaubsplaner!KJ1,Tabelle1[],1,FALSE)),TEXT(Urlaubsplaner!KJ1,\"TTT.\"),VLOOKUP(Urlaubsplaner!KJ1,Tabelle1[],2,FALSE))","v":"Mi."},{"$f":"IF(ISERROR(VLOOKUP(Urlaubsplaner!KK1,Tabelle1[],1,FALSE)),TEXT(Urlaubsplaner!KK1,\"TTT.\"),VLOOKUP(Urlaubsplaner!KK1,Tabelle1[],2,FALSE))","v":"Do."},{"$f":"IF(ISERROR(VLOOKUP(Urlaubsplaner!KL1,Tabelle1[],1,FALSE)),TEXT(Urlaubsplaner!KL1,\"TTT.\"),VLOOKUP(Urlaubsplaner!KL1,Tabelle1[],2,FALSE))","v":"Fr."},{"$f":"IF(ISERROR(VLOOKUP(Urlaubsplaner!KM1,Tabelle1[],1,FALSE)),TEXT(Urlaubsplaner!KM1,\"TTT.\"),VLOOKUP(Urlaubsplaner!KM1,Tabelle1[],2,FALSE))","v":"Sa."},{"$f":"IF(ISERROR(VLOOKUP(Urlaubsplaner!KN1,Tabelle1[],1,FALSE)),TEXT(Urlaubsplaner!KN1,\"TTT.\"),VLOOKUP(Urlaubsplaner!KN1,Tabelle1[],2,FALSE))","v":"So."},{"$f":"IF(ISERROR(VLOOKUP(Urlaubsplaner!KO1,Tabelle1[],1,FALSE)),TEXT(Urlaubsplaner!KO1,\"TTT.\"),VLOOKUP(Urlaubsplaner!KO1,Tabelle1[],2,FALSE))","v":"Mo."},{"$f":"IF(ISERROR(VLOOKUP(Urlaubsplaner!KP1,Tabelle1[],1,FALSE)),TEXT(Urlaubsplaner!KP1,\"TTT.\"),VLOOKUP(Urlaubsplaner!KP1,Tabelle1[],2,FALSE))","v":"Di."},{"$f":"IF(ISERROR(VLOOKUP(Urlaubsplaner!KQ1,Tabelle1[],1,FALSE)),TEXT(Urlaubsplaner!KQ1,\"TTT.\"),VLOOKUP(Urlaubsplaner!KQ1,Tabelle1[],2,FALSE))","v":"Mi."},{"$f":"IF(ISERROR(VLOOKUP(Urlaubsplaner!KR1,Tabelle1[],1,FALSE)),TEXT(Urlaubsplaner!KR1,\"TTT.\"),VLOOKUP(Urlaubsplaner!KR1,Tabelle1[],2,FALSE))","v":"Do."},{"$f":"IF(ISERROR(VLOOKUP(Urlaubsplaner!KS1,Tabelle1[],1,FALSE)),TEXT(Urlaubsplaner!KS1,\"TTT.\"),VLOOKUP(Urlaubsplaner!KS1,Tabelle1[],2,FALSE))","v":"Fr."},{"$f":"IF(ISERROR(VLOOKUP(Urlaubsplaner!KT1,Tabelle1[],1,FALSE)),TEXT(Urlaubsplaner!KT1,\"TTT.\"),VLOOKUP(Urlaubsplaner!KT1,Tabelle1[],2,FALSE))","v":"Sa."},{"$f":"IF(ISERROR(VLOOKUP(Urlaubsplaner!KU1,Tabelle1[],1,FALSE)),TEXT(Urlaubsplaner!KU1,\"TTT.\"),VLOOKUP(Urlaubsplaner!KU1,Tabelle1[],2,FALSE))","v":"So."},{"$f":"IF(ISERROR(VLOOKUP(Urlaubsplaner!KV1,Tabelle1[],1,FALSE)),TEXT(Urlaubsplaner!KV1,\"TTT.\"),VLOOKUP(Urlaubsplaner!KV1,Tabelle1[],2,FALSE))","v":"Mo."},{"$f":"IF(ISERROR(VLOOKUP(Urlaubsplaner!KW1,Tabelle1[],1,FALSE)),TEXT(Urlaubsplaner!KW1,\"TTT.\"),VLOOKUP(Urlaubsplaner!KW1,Tabelle1[],2,FALSE))","v":"Di."},{"$f":"IF(ISERROR(VLOOKUP(Urlaubsplaner!KX1,Tabelle1[],1,FALSE)),TEXT(Urlaubsplaner!KX1,\"TTT.\"),VLOOKUP(Urlaubsplaner!KX1,Tabelle1[],2,FALSE))","v":"Mi."},{"$f":"IF(ISERROR(VLOOKUP(Urlaubsplaner!KY1,Tabelle1[],1,FALSE)),TEXT(Urlaubsplaner!KY1,\"TTT.\"),VLOOKUP(Urlaubsplaner!KY1,Tabelle1[],2,FALSE))","v":"Do."},{"$f":"IF(ISERROR(VLOOKUP(Urlaubsplaner!KZ1,Tabelle1[],1,FALSE)),TEXT(Urlaubsplaner!KZ1,\"TTT.\"),VLOOKUP(Urlaubsplaner!KZ1,Tabelle1[],2,FALSE))","v":"Fr."},{"$f":"IF(ISERROR(VLOOKUP(Urlaubsplaner!LA1,Tabelle1[],1,FALSE)),TEXT(Urlaubsplaner!LA1,\"TTT.\"),VLOOKUP(Urlaubsplaner!LA1,Tabelle1[],2,FALSE))","v":"Sa."},{"$f":"IF(ISERROR(VLOOKUP(Urlaubsplaner!LB1,Tabelle1[],1,FALSE)),TEXT(Urlaubsplaner!LB1,\"TTT.\"),VLOOKUP(Urlaubsplaner!LB1,Tabelle1[],2,FALSE))","v":"So."},{"$f":"IF(ISERROR(VLOOKUP(Urlaubsplaner!LC1,Tabelle1[],1,FALSE)),TEXT(Urlaubsplaner!LC1,\"TTT.\"),VLOOKUP(Urlaubsplaner!LC1,Tabelle1[],2,FALSE))","v":"Mo."},{"$f":"IF(ISERROR(VLOOKUP(Urlaubsplaner!LD1,Tabelle1[],1,FALSE)),TEXT(Urlaubsplaner!LD1,\"TTT.\"),VLOOKUP(Urlaubsplaner!LD1,Tabelle1[],2,FALSE))","v":"Di."},{"$f":"IF(ISERROR(VLOOKUP(Urlaubsplaner!LE1,Tabelle1[],1,FALSE)),TEXT(Urlaubsplaner!LE1,\"TTT.\"),VLOOKUP(Urlaubsplaner!LE1,Tabelle1[],2,FALSE))","v":"Mi."},{"$f":"IF(ISERROR(VLOOKUP(Urlaubsplaner!LF1,Tabelle1[],1,FALSE)),TEXT(Urlaubsplaner!LF1,\"TTT.\"),VLOOKUP(Urlaubsplaner!LF1,Tabelle1[],2,FALSE))","v":"Do."},{"$f":"IF(ISERROR(VLOOKUP(Urlaubsplaner!LG1,Tabelle1[],1,FALSE)),TEXT(Urlaubsplaner!LG1,\"TTT.\"),VLOOKUP(Urlaubsplaner!LG1,Tabelle1[],2,FALSE))","v":"Fr."},{"$f":"IF(ISERROR(VLOOKUP(Urlaubsplaner!LH1,Tabelle1[],1,FALSE)),TEXT(Urlaubsplaner!LH1,\"TTT.\"),VLOOKUP(Urlaubsplaner!LH1,Tabelle1[],2,FALSE))","v":"Sa."},{"$f":"IF(ISERROR(VLOOKUP(Urlaubsplaner!LI1,Tabelle1[],1,FALSE)),TEXT(Urlaubsplaner!LI1,\"TTT.\"),VLOOKUP(Urlaubsplaner!LI1,Tabelle1[],2,FALSE))","v":"So."},{"$f":"IF(ISERROR(VLOOKUP(Urlaubsplaner!LJ1,Tabelle1[],1,FALSE)),TEXT(Urlaubsplaner!LJ1,\"TTT.\"),VLOOKUP(Urlaubsplaner!LJ1,Tabelle1[],2,FALSE))","v":"Mo."},{"$f":"IF(ISERROR(VLOOKUP(Urlaubsplaner!LK1,Tabelle1[],1,FALSE)),TEXT(Urlaubsplaner!LK1,\"TTT.\"),VLOOKUP(Urlaubsplaner!LK1,Tabelle1[],2,FALSE))","v":"Di."},{"$f":"IF(ISERROR(VLOOKUP(Urlaubsplaner!LL1,Tabelle1[],1,FALSE)),TEXT(Urlaubsplaner!LL1,\"TTT.\"),VLOOKUP(Urlaubsplaner!LL1,Tabelle1[],2,FALSE))","v":"Mi."},{"$f":"IF(ISERROR(VLOOKUP(Urlaubsplaner!LM1,Tabelle1[],1,FALSE)),TEXT(Urlaubsplaner!LM1,\"TTT.\"),VLOOKUP(Urlaubsplaner!LM1,Tabelle1[],2,FALSE))","v":"Do."},{"$f":"IF(ISERROR(VLOOKUP(Urlaubsplaner!LN1,Tabelle1[],1,FALSE)),TEXT(Urlaubsplaner!LN1,\"TTT.\"),VLOOKUP(Urlaubsplaner!LN1,Tabelle1[],2,FALSE))","v":"Fr."},{"$f":"IF(ISERROR(VLOOKUP(Urlaubsplaner!LO1,Tabelle1[],1,FALSE)),TEXT(Urlaubsplaner!LO1,\"TTT.\"),VLOOKUP(Urlaubsplaner!LO1,Tabelle1[],2,FALSE))","v":"Sa."},{"$f":"IF(ISERROR(VLOOKUP(Urlaubsplaner!LP1,Tabelle1[],1,FALSE)),TEXT(Urlaubsplaner!LP1,\"TTT.\"),VLOOKUP(Urlaubsplaner!LP1,Tabelle1[],2,FALSE))","v":"So."},{"$f":"IF(ISERROR(VLOOKUP(Urlaubsplaner!LQ1,Tabelle1[],1,FALSE)),TEXT(Urlaubsplaner!LQ1,\"TTT.\"),VLOOKUP(Urlaubsplaner!LQ1,Tabelle1[],2,FALSE))","v":"Mo."},{"$f":"IF(ISERROR(VLOOKUP(Urlaubsplaner!LR1,Tabelle1[],1,FALSE)),TEXT(Urlaubsplaner!LR1,\"TTT.\"),VLOOKUP(Urlaubsplaner!LR1,Tabelle1[],2,FALSE))","v":"Di."},{"$f":"IF(ISERROR(VLOOKUP(Urlaubsplaner!LS1,Tabelle1[],1,FALSE)),TEXT(Urlaubsplaner!LS1,\"TTT.\"),VLOOKUP(Urlaubsplaner!LS1,Tabelle1[],2,FALSE))","v":"Mi."},{"$f":"IF(ISERROR(VLOOKUP(Urlaubsplaner!LT1,Tabelle1[],1,FALSE)),TEXT(Urlaubsplaner!LT1,\"TTT.\"),VLOOKUP(Urlaubsplaner!LT1,Tabelle1[],2,FALSE))","v":"Do."},{"$f":"IF(ISERROR(VLOOKUP(Urlaubsplaner!LU1,Tabelle1[],1,FALSE)),TEXT(Urlaubsplaner!LU1,\"TTT.\"),VLOOKUP(Urlaubsplaner!LU1,Tabelle1[],2,FALSE))","v":"Fr."},{"$f":"IF(ISERROR(VLOOKUP(Urlaubsplaner!LV1,Tabelle1[],1,FALSE)),TEXT(Urlaubsplaner!LV1,\"TTT.\"),VLOOKUP(Urlaubsplaner!LV1,Tabelle1[],2,FALSE))","v":"Sa."},{"$f":"IF(ISERROR(VLOOKUP(Urlaubsplaner!LW1,Tabelle1[],1,FALSE)),TEXT(Urlaubsplaner!LW1,\"TTT.\"),VLOOKUP(Urlaubsplaner!LW1,Tabelle1[],2,FALSE))","v":"So."},{"$f":"IF(ISERROR(VLOOKUP(Urlaubsplaner!LX1,Tabelle1[],1,FALSE)),TEXT(Urlaubsplaner!LX1,\"TTT.\"),VLOOKUP(Urlaubsplaner!LX1,Tabelle1[],2,FALSE))","v":"Mo."},{"$f":"IF(ISERROR(VLOOKUP(Urlaubsplaner!LY1,Tabelle1[],1,FALSE)),TEXT(Urlaubsplaner!LY1,\"TTT.\"),VLOOKUP(Urlaubsplaner!LY1,Tabelle1[],2,FALSE))","v":"Di."},{"$f":"IF(ISERROR(VLOOKUP(Urlaubsplaner!LZ1,Tabelle1[],1,FALSE)),TEXT(Urlaubsplaner!LZ1,\"TTT.\"),VLOOKUP(Urlaubsplaner!LZ1,Tabelle1[],2,FALSE))","v":"Mi."},{"$f":"IF(ISERROR(VLOOKUP(Urlaubsplaner!MA1,Tabelle1[],1,FALSE)),TEXT(Urlaubsplaner!MA1,\"TTT.\"),VLOOKUP(Urlaubsplaner!MA1,Tabelle1[],2,FALSE))","v":"Do."},{"$f":"IF(ISERROR(VLOOKUP(Urlaubsplaner!MB1,Tabelle1[],1,FALSE)),TEXT(Urlaubsplaner!MB1,\"TTT.\"),VLOOKUP(Urlaubsplaner!MB1,Tabelle1[],2,FALSE))","v":"Fr."},{"$f":"IF(ISERROR(VLOOKUP(Urlaubsplaner!MC1,Tabelle1[],1,FALSE)),TEXT(Urlaubsplaner!MC1,\"TTT.\"),VLOOKUP(Urlaubsplaner!MC1,Tabelle1[],2,FALSE))","v":"Sa."},{"$f":"IF(ISERROR(VLOOKUP(Urlaubsplaner!MD1,Tabelle1[],1,FALSE)),TEXT(Urlaubsplaner!MD1,\"TTT.\"),VLOOKUP(Urlaubsplaner!MD1,Tabelle1[],2,FALSE))","v":"So."},{"$f":"IF(ISERROR(VLOOKUP(Urlaubsplaner!ME1,Tabelle1[],1,FALSE)),TEXT(Urlaubsplaner!ME1,\"TTT.\"),VLOOKUP(Urlaubsplaner!ME1,Tabelle1[],2,FALSE))","v":"Mo."},{"$f":"IF(ISERROR(VLOOKUP(Urlaubsplaner!MF1,Tabelle1[],1,FALSE)),TEXT(Urlaubsplaner!MF1,\"TTT.\"),VLOOKUP(Urlaubsplaner!MF1,Tabelle1[],2,FALSE))","v":"Di."},{"$f":"IF(ISERROR(VLOOKUP(Urlaubsplaner!MG1,Tabelle1[],1,FALSE)),TEXT(Urlaubsplaner!MG1,\"TTT.\"),VLOOKUP(Urlaubsplaner!MG1,Tabelle1[],2,FALSE))","v":"Mi."},{"$f":"IF(ISERROR(VLOOKUP(Urlaubsplaner!MH1,Tabelle1[],1,FALSE)),TEXT(Urlaubsplaner!MH1,\"TTT.\"),VLOOKUP(Urlaubsplaner!MH1,Tabelle1[],2,FALSE))","v":"Do."},{"$f":"IF(ISERROR(VLOOKUP(Urlaubsplaner!MI1,Tabelle1[],1,FALSE)),TEXT(Urlaubsplaner!MI1,\"TTT.\"),VLOOKUP(Urlaubsplaner!MI1,Tabelle1[],2,FALSE))","v":"Fr."},{"$f":"IF(ISERROR(VLOOKUP(Urlaubsplaner!MJ1,Tabelle1[],1,FALSE)),TEXT(Urlaubsplaner!MJ1,\"TTT.\"),VLOOKUP(Urlaubsplaner!MJ1,Tabelle1[],2,FALSE))","v":"Sa."},{"$f":"IF(ISERROR(VLOOKUP(Urlaubsplaner!MK1,Tabelle1[],1,FALSE)),TEXT(Urlaubsplaner!MK1,\"TTT.\"),VLOOKUP(Urlaubsplaner!MK1,Tabelle1[],2,FALSE))","v":"So."},{"$f":"IF(ISERROR(VLOOKUP(Urlaubsplaner!ML1,Tabelle1[],1,FALSE)),TEXT(Urlaubsplaner!ML1,\"TTT.\"),VLOOKUP(Urlaubsplaner!ML1,Tabelle1[],2,FALSE))","v":"Mo."},{"$f":"IF(ISERROR(VLOOKUP(Urlaubsplaner!MM1,Tabelle1[],1,FALSE)),TEXT(Urlaubsplaner!MM1,\"TTT.\"),VLOOKUP(Urlaubsplaner!MM1,Tabelle1[],2,FALSE))","v":"Di."},{"$f":"IF(ISERROR(VLOOKUP(Urlaubsplaner!MN1,Tabelle1[],1,FALSE)),TEXT(Urlaubsplaner!MN1,\"TTT.\"),VLOOKUP(Urlaubsplaner!MN1,Tabelle1[],2,FALSE))","v":"Mi."},{"$f":"IF(ISERROR(VLOOKUP(Urlaubsplaner!MO1,Tabelle1[],1,FALSE)),TEXT(Urlaubsplaner!MO1,\"TTT.\"),VLOOKUP(Urlaubsplaner!MO1,Tabelle1[],2,FALSE))","v":"Do."},{"$f":"IF(ISERROR(VLOOKUP(Urlaubsplaner!MP1,Tabelle1[],1,FALSE)),TEXT(Urlaubsplaner!MP1,\"TTT.\"),VLOOKUP(Urlaubsplaner!MP1,Tabelle1[],2,FALSE))","v":"Fr."},{"$f":"IF(ISERROR(VLOOKUP(Urlaubsplaner!MQ1,Tabelle1[],1,FALSE)),TEXT(Urlaubsplaner!MQ1,\"TTT.\"),VLOOKUP(Urlaubsplaner!MQ1,Tabelle1[],2,FALSE))","v":"Sa."},{"$f":"IF(ISERROR(VLOOKUP(Urlaubsplaner!MR1,Tabelle1[],1,FALSE)),TEXT(Urlaubsplaner!MR1,\"TTT.\"),VLOOKUP(Urlaubsplaner!MR1,Tabelle1[],2,FALSE))","v":"So."},{"$f":"IF(ISERROR(VLOOKUP(Urlaubsplaner!MS1,Tabelle1[],1,FALSE)),TEXT(Urlaubsplaner!MS1,\"TTT.\"),VLOOKUP(Urlaubsplaner!MS1,Tabelle1[],2,FALSE))","v":"Mo."},{"$f":"IF(ISERROR(VLOOKUP(Urlaubsplaner!MT1,Tabelle1[],1,FALSE)),TEXT(Urlaubsplaner!MT1,\"TTT.\"),VLOOKUP(Urlaubsplaner!MT1,Tabelle1[],2,FALSE))","v":"Di."},{"$f":"IF(ISERROR(VLOOKUP(Urlaubsplaner!MU1,Tabelle1[],1,FALSE)),TEXT(Urlaubsplaner!MU1,\"TTT.\"),VLOOKUP(Urlaubsplaner!MU1,Tabelle1[],2,FALSE))","v":"Mi."},{"$f":"IF(ISERROR(VLOOKUP(Urlaubsplaner!MV1,Tabelle1[],1,FALSE)),TEXT(Urlaubsplaner!MV1,\"TTT.\"),VLOOKUP(Urlaubsplaner!MV1,Tabelle1[],2,FALSE))","v":"Hl. Abend"},{"$f":"IF(ISERROR(VLOOKUP(Urlaubsplaner!MW1,Tabelle1[],1,FALSE)),TEXT(Urlaubsplaner!MW1,\"TTT.\"),VLOOKUP(Urlaubsplaner!MW1,Tabelle1[],2,FALSE))","v":"1. Weihnachtstag"},{"$f":"IF(ISERROR(VLOOKUP(Urlaubsplaner!MX1,Tabelle1[],1,FALSE)),TEXT(Urlaubsplaner!MX1,\"TTT.\"),VLOOKUP(Urlaubsplaner!MX1,Tabelle1[],2,FALSE))","v":"2. Weihnachtstag"},{"$f":"IF(ISERROR(VLOOKUP(Urlaubsplaner!MY1,Tabelle1[],1,FALSE)),TEXT(Urlaubsplaner!MY1,\"TTT.\"),VLOOKUP(Urlaubsplaner!MY1,Tabelle1[],2,FALSE))","v":"So."},{"$f":"IF(ISERROR(VLOOKUP(Urlaubsplaner!MZ1,Tabelle1[],1,FALSE)),TEXT(Urlaubsplaner!MZ1,\"TTT.\"),VLOOKUP(Urlaubsplaner!MZ1,Tabelle1[],2,FALSE))","v":"Mo."},{"$f":"IF(ISERROR(VLOOKUP(Urlaubsplaner!NA1,Tabelle1[],1,FALSE)),TEXT(Urlaubsplaner!NA1,\"TTT.\"),VLOOKUP(Urlaubsplaner!NA1,Tabelle1[],2,FALSE))","v":"Di."},{"$f":"IF(ISERROR(VLOOKUP(Urlaubsplaner!NB1,Tabelle1[],1,FALSE)),TEXT(Urlaubsplaner!NB1,\"TTT.\"),VLOOKUP(Urlaubsplaner!NB1,Tabelle1[],2,FALSE))","v":"Mi."},{"$f":"IF(ISERROR(VLOOKUP(Urlaubsplaner!NC1,Tabelle1[],1,FALSE)),TEXT(Urlaubsplaner!NC1,\"TTT.\"),VLOOKUP(Urlaubsplaner!NC1,Tabelle1[],2,FALSE))","v":"Silvester"},{"$f":"IF(ISERROR(VLOOKUP(Urlaubsplaner!ND1,Tabelle1[],1,FALSE)),TEXT(Urlaubsplaner!ND1,\"TTT.\"),VLOOKUP(Urlaubsplaner!ND1,Tabelle1[],2,FALSE))","v":""}]
["Jürgen",{"$f":"COUNTIF(C3:ND3,\"Urlaub\")","v":0}]
["Torsten",0]
["Karin",0]
["Norbert",0]
["Friedrich",0]
["Ulla",0]
["Queen",0]
["Orleen",0]
["Wendy",0]
["Anna",0]
["Richie",0]
["Zacharias",0]
["Peter",0]
["Xaver",0]
["Valentin",0]
["Hans",0]
["Ludwig",0]
["Carola",0]
["Sandy",0]
["Bert",0]
["Ida",0]
["Daniel",0]
["Eva",0]
["Yvonne",0]
["Gudrun",0]
["Mandy",0]

{"sheet":"Feiertage","index":1,"n_rows":16,"n_cols":2,"rows_kept":16,"cut":false,"hidden":false,"merged":[]}
[{"$f":"YEAR(Urlaubsplaner!C1)","v":2015}]
["Datum","Feiertag"]
[{"$f":"DATE(A1,1,1)","v":"2015-01-01"},"Neujahr"]
[{"$f":"A3+5","v":"2015-01-06"},"Hl. 3 Könige"]
[{"$f":"A6-2","v":"2015-04-03"},"Karfreitag"]
[{"$f":"7*ROUND((4&-A1)/7+MOD(19*MOD(A1,19)-7,30)*0.14,)-6","v":"2015-04-05"},"Ostern"]
[{"$f":"A6+1","v":"2015-04-06"},"Ostermontag"]
[{"$f":"DATE(A1,5,1)","v":"2015-05-01"},"1. Mai"]
[{"$f":"A6+39","v":"2015-05-14"},"Himmelfahrt"]
[{"$f":"A6+49","v":"2015-05-24"},"Pfingsten"]
[{"$f":"A6+50","v":"2015-05-25"},"Pfingstmontag"]
[{"$f":"DATE(A1,10,3)","v":"2015-10-03"},"Tag der Einheit"]
[{"$f":"DATE(A1,12,24)","v":"2015-12-24"},"Hl. Abend"]
[{"$f":"DATE(A1,12,25)","v":"2015-12-25"},"1. Weihnachtstag"]
[{"$f":"DATE(A1,12,26)","v":"2015-12-26"},"2. Weihnachtstag"]
[{"$f":"DATE(A1,12,31)","v":"2015-12-31"},"Silvester"]